{"text_format":"1","workbook":"xlsx","n_sheets":3,"sheets":["LISTE DES TIREURS","FEUILLE D'INSCRIPTION","MODE D'EMPLOI"],"not_rendered":{"charts":0,"images":3,"macros":1,"external_links":0,"defined_names":2,"comments":0,"pivot_tables":0},"unopened":[],"bounds":{"document_bytes":16777216,"sheet_cells":100000,"rows_first":2000,"rows_last":500,"rows_between":2000,"halvings":0,"cell_chars":16384,"cell_head_chars":4096},"cells_cut":0,"cells_raw":0,"read":"whole","date_system":"1900"}

{"sheet":"LISTE DES TIREURS","index":0,"n_rows":202,"n_cols":11,"rows_kept":202,"cut":false,"hidden":false,"merged":[]}
[]
[null,"TIR INTER-USINES","ANNÉE",{"$f":"INDEX('LISTE DES TIREURS'!J$8:J$31,'LISTE DES TIREURS'!K8)","v":2023}]
[null,null,null,null,null,{"$f":"D2","v":2023}]
[]
[null,"LISTE DES TIREURS","TOUT EN MAJUSCULE"]
[]
[null,"NOM PRÉNOM","AN (1950)","ARME - WAFFE",null,null,"NOUVEAU NOM DE GROUPE"]
[null,null,null,null,null,null,null,null,null,2017,7]
[null,null,null,null,8,1,"INDIVIDUEL",null,null,2018]
[null,null,null,null,null,null,"MITES A BETON 1",null,null,2019]
[null,null,null,null,1,null,"MITES A BETON 2",null,null,2020]
[null,null,null,null,null,null,null,null,null,2021]
[null,null,null,null,"A",null,null,null,null,2022]
[null,null,null,null,"B",null,null,null,null,2023]
[null,null,null,null,"C",null,null,null,null,2024]
[null,null,null,null,null,null,null,null,null,2025]
[null,null,null,null,null,null,null,null,null,2026]
[null,null,null,null,null,null,null,null,null,2027]
[null,null,null,null,null,null,null,null,null,2028]
[null,null,null,null,null,null,null,null,null,2029]
[null,null,null,null,null,null,null,null,null,2030]
[null,null,null,null,null,null,null,null,null,2031]
[null,null,null,null,null,null,null,null,null,2032]
[null,null,null,null,null,null,null,null,null,2033]
[null,null,null,null,null,null,null,null,null,2034]
[null,null,null,null,null,null,null,null,null,2035]
[null,null,null,null,null,null,null,null,null,2036]
[null,null,null,null,null,null,null,null,null,2037]
[null,null,null,null,null,null,null,null,null,2038]
[null,null,null,null,null,null,null,null,null,2039]
[null,null,null,null,null,null,null,null,null,2040]
[]
[]
[]
[null,null,null,null,null,null,{"$f":"G76","v":0}]
[null,null,null,null,null,null,0]
[null,null,null,null,null,null,0]
[null,null,null,null,null,null,0]
[null,null,null,null,null,null," "]
[null,null,null,null,null,null," "]
[null,null,null,null,null,null," "]
[]
[]
[]
[]
[]
[]
[]
[]
[]
[]
[]
[]
[]
[]
[]
[]
[]
[]
[]
[]
[]
[]
[]
[]
[]
[]
[]
[]
[]
[]
[]
[]
[]
[1,"PIATEK MATEUSZ",1991,{"$f":"INDEX('LISTE DES TIREURS'!E$83:E$85,'LISTE DES TIREURS'!F83)","v":"F57 / M"}]
[2,"PIATEK PAWEL",1974,{"$f":"INDEX('LISTE DES TIREURS'!E$83:E$85,'LISTE DES TIREURS'!F84)","v":"F57 / M"}]
[3,"RIESEN YVAN",1989,{"$f":"INDEX('LISTE DES TIREURS'!E$83:E$85,'LISTE DES TIREURS'!F85)","v":"F90"}]
[4,"SUDAN ANGELIQUE",1983,{"$f":"INDEX('LISTE DES TIREURS'!E$83:E$85,'LISTE DES TIREURS'!F86)","v":"F90"}]
[5,"SUDAN GERALDINE",1989,{"$f":"INDEX('LISTE DES TIREURS'!E$83:E$85,'LISTE DES TIREURS'!F87)","v":"F90"}]
[6,"SUDAN JEAN-CLAUDE",1959,{"$f":"INDEX('LISTE DES TIREURS'!E$83:E$85,'LISTE DES TIREURS'!F88)","v":"F57 / M"},null,null," "]
[7,"SUDAN MURIELLE",1962,{"$f":"INDEX('LISTE DES TIREURS'!E$83:E$85,'LISTE DES TIREURS'!F89)","v":"F90"},null,null," "]
[8,"THEVENAZ NICOLAS",1989,{"$f":"INDEX('LISTE DES TIREURS'!E$83:E$85,'LISTE DES TIREURS'!F90)","v":"F90"},null,null," "]
[9,null,null,{"$f":"INDEX('LISTE DES TIREURS'!E$83:E$85,'LISTE DES TIREURS'!F91)","v":0},null,3]
[10,null,null,{"$f":"INDEX('LISTE DES TIREURS'!E$83:E$85,'LISTE DES TIREURS'!F92)","v":0},"F90",3]
[11,null,null,{"$f":"INDEX('LISTE DES TIREURS'!E$83:E$85,'LISTE DES TIREURS'!F93)","v":0},"F57 / M",2]
[12,null,null,{"$f":"INDEX('LISTE DES TIREURS'!E$83:E$85,'LISTE DES TIREURS'!F94)","v":0},null,2]
[13,null,null,{"$f":"INDEX('LISTE DES TIREURS'!E$83:E$85,'LISTE DES TIREURS'!F95)","v":0},null,2]
[14,null,null,{"$f":"INDEX('LISTE DES TIREURS'!E$83:E$85,'LISTE DES TIREURS'!F96)","v":0},null,3]
[15,null,null,{"$f":"INDEX('LISTE DES TIREURS'!E$83:E$85,'LISTE DES TIREURS'!F97)","v":0},null,2]
[16,null,null,{"$f":"INDEX('LISTE DES TIREURS'!E$83:E$85,'LISTE DES TIREURS'!F98)","v":0},null,2]
[17,null,null,{"$f":"INDEX('LISTE DES TIREURS'!E$83:E$85,'LISTE DES TIREURS'!F99)","v":0},null,1]
[18,null,null,{"$f":"INDEX('LISTE DES TIREURS'!E$83:E$85,'LISTE DES TIREURS'!F100)","v":0},null,1]
[19,null,null,{"$f":"INDEX('LISTE DES TIREURS'!E$83:E$85,'LISTE DES TIREURS'!F101)","v":0},null,1]
[20,null,null,{"$f":"INDEX('LISTE DES TIREURS'!E$83:E$85,'LISTE DES TIREURS'!F102)","v":0},null,1]
[21,null,null,{"$f":"INDEX('LISTE DES TIREURS'!E$83:E$85,'LISTE DES TIREURS'!F103)","v":0},null,1]
[22,null,null,{"$f":"INDEX('LISTE DES TIREURS'!E$83:E$85,'LISTE DES TIREURS'!F104)","v":0},null,1]
[23,null,null,{"$f":"INDEX('LISTE DES TIREURS'!E$83:E$85,'LISTE DES TIREURS'!F105)","v":0},null,1]
[24,null,null,{"$f":"INDEX('LISTE DES TIREURS'!E$83:E$85,'LISTE DES TIREURS'!F106)","v":0},null,1]
[25,null,null,{"$f":"INDEX('LISTE DES TIREURS'!E$83:E$85,'LISTE DES TIREURS'!F107)","v":0},null,1]
[26,null,null,{"$f":"INDEX('LISTE DES TIREURS'!E$83:E$85,'LISTE DES TIREURS'!F108)","v":0},null,1]
[27,null,null,{"$f":"INDEX('LISTE DES TIREURS'!E$83:E$85,'LISTE DES TIREURS'!F109)","v":0},null,1]
[28,null,null,{"$f":"INDEX('LISTE DES TIREURS'!E$83:E$85,'LISTE DES TIREURS'!F110)","v":0},null,1]
[29,null,null,{"$f":"INDEX('LISTE DES TIREURS'!E$83:E$85,'LISTE DES TIREURS'!F111)","v":0},null,1]
[30,null,null,{"$f":"INDEX('LISTE DES TIREURS'!E$83:E$85,'LISTE DES TIREURS'!F112)","v":0},null,1]
[31,null,null,{"$f":"INDEX('LISTE DES TIREURS'!E$83:E$85,'LISTE DES TIREURS'!F113)","v":0},null,1]
[32,null,null,{"$f":"INDEX('LISTE DES TIREURS'!E$83:E$85,'LISTE DES TIREURS'!F114)","v":0},null,1]
[33,null,null,{"$f":"INDEX('LISTE DES TIREURS'!E$83:E$85,'LISTE DES TIREURS'!F115)","v":0},null,1]
[34,null,null,{"$f":"INDEX('LISTE DES TIREURS'!E$83:E$85,'LISTE DES TIREURS'!F116)","v":0},null,1]
[35,null,null,{"$f":"INDEX('LISTE DES TIREURS'!E$83:E$85,'LISTE DES TIREURS'!F117)","v":0},null,1]
[36,null,null,{"$f":"INDEX('LISTE DES TIREURS'!E$83:E$85,'LISTE DES TIREURS'!F118)","v":0},null,1]
[37,null,null,{"$f":"INDEX('LISTE DES TIREURS'!E$83:E$85,'LISTE DES TIREURS'!F119)","v":0},null,1]
[38,null,null,{"$f":"INDEX('LISTE DES TIREURS'!E$83:E$85,'LISTE DES TIREURS'!F120)","v":0},null,1]
[39,null,null,{"$f":"INDEX('LISTE DES TIREURS'!E$83:E$85,'LISTE DES TIREURS'!F121)","v":0},null,1]
[40,null,null,{"$f":"INDEX('LISTE DES TIREURS'!E$83:E$85,'LISTE DES TIREURS'!F122)","v":0},null,1]
[41,null,null,{"$f":"INDEX('LISTE DES TIREURS'!E$83:E$85,'LISTE DES TIREURS'!F123)","v":0},null,1]
[42,null,null,{"$f":"INDEX('LISTE DES TIREURS'!E$83:E$85,'LISTE DES TIREURS'!F124)","v":0},null,1]
[43,null,null,{"$f":"INDEX('LISTE DES TIREURS'!E$83:E$85,'LISTE DES TIREURS'!F125)","v":0},null,1]
[44,null,null,{"$f":"INDEX('LISTE DES TIREURS'!E$83:E$85,'LISTE DES TIREURS'!F126)","v":0},null,1]
[45,null,null,{"$f":"INDEX('LISTE DES TIREURS'!E$83:E$85,'LISTE DES TIREURS'!F127)","v":0},null,1]
[46,null,null,{"$f":"INDEX('LISTE DES TIREURS'!E$83:E$85,'LISTE DES TIREURS'!F128)","v":0},null,1]
[47,null,null,{"$f":"INDEX('LISTE DES TIREURS'!E$83:E$85,'LISTE DES TIREURS'!F129)","v":0},null,1]
[48,null,null,{"$f":"INDEX('LISTE DES TIREURS'!E$83:E$85,'LISTE DES TIREURS'!F130)","v":0},null,1]
[49,null,null,{"$f":"INDEX('LISTE DES TIREURS'!E$83:E$85,'LISTE DES TIREURS'!F131)","v":0},null,1]
[50,null,null,{"$f":"INDEX('LISTE DES TIREURS'!E$83:E$85,'LISTE DES TIREURS'!F132)","v":0},null,1]
[51,null,null,{"$f":"INDEX('LISTE DES TIREURS'!E$83:E$85,'LISTE DES TIREURS'!F$133)","v":0},null,1]
[52,null,null,{"$f":"INDEX('LISTE DES TIREURS'!E$83:E$85,'LISTE DES TIREURS'!F134)","v":0},null,1]
[53,null,null,{"$f":"INDEX('LISTE DES TIREURS'!E$83:E$85,'LISTE DES TIREURS'!F135)","v":0},null,1]
[54,null,null,{"$f":"INDEX('LISTE DES TIREURS'!E$83:E$85,'LISTE DES TIREURS'!F136)","v":0},null,1]
[55,null,null,{"$f":"INDEX('LISTE DES TIREURS'!E$83:E$85,'LISTE DES TIREURS'!F137)","v":0},null,1]
[56,null,null,{"$f":"INDEX('LISTE DES TIREURS'!E$83:E$85,'LISTE DES TIREURS'!F138)","v":0},null,1]
[57,null,null,{"$f":"INDEX('LISTE DES TIREURS'!E$83:E$85,'LISTE DES TIREURS'!F139)","v":0},null,1]
[58,null,null,{"$f":"INDEX('LISTE DES TIREURS'!E$83:E$85,'LISTE DES TIREURS'!F140)","v":0},null,1]
[59,null,null,{"$f":"INDEX('LISTE DES TIREURS'!E$83:E$85,'LISTE DES TIREURS'!F141)","v":0},null,1]
[60,null,null,{"$f":"INDEX('LISTE DES TIREURS'!E$83:E$85,'LISTE DES TIREURS'!F142)","v":0},null,1]
[61,null,null,{"$f":"INDEX('LISTE DES TIREURS'!E$83:E$85,'LISTE DES TIREURS'!F143)","v":0},null,1]
[62,null,null,{"$f":"INDEX('LISTE DES TIREURS'!E$83:E$85,'LISTE DES TIREURS'!F144)","v":0},null,1]
[63,null,null,{"$f":"INDEX('LISTE DES TIREURS'!E$83:E$85,'LISTE DES TIREURS'!F145)","v":0},null,1]
[64,null,null,{"$f":"INDEX('LISTE DES TIREURS'!E$83:E$85,'LISTE DES TIREURS'!F146)","v":0},null,1]
[65,null,null,{"$f":"INDEX('LISTE DES TIREURS'!E$83:E$85,'LISTE DES TIREURS'!F147)","v":0},null,1]
[66,null,null,{"$f":"INDEX('LISTE DES TIREURS'!E$83:E$85,'LISTE DES TIREURS'!F148)","v":0},null,1]
[67,null,null,{"$f":"INDEX('LISTE DES TIREURS'!E$83:E$85,'LISTE DES TIREURS'!F149)","v":0},null,1]
[68,null,null,{"$f":"INDEX('LISTE DES TIREURS'!E$83:E$85,'LISTE DES TIREURS'!F150)","v":0},null,1]
[69,null,null,{"$f":"INDEX('LISTE DES TIREURS'!E$83:E$85,'LISTE DES TIREURS'!F151)","v":0},null,1]
[70,null,null,{"$f":"INDEX('LISTE DES TIREURS'!E$83:E$85,'LISTE DES TIREURS'!F152)","v":0},null,1]
[71,null,null,{"$f":"INDEX('LISTE DES TIREURS'!E$83:E$85,'LISTE DES TIREURS'!F153)","v":0},null,1]
[72,null,null,{"$f":"INDEX('LISTE DES TIREURS'!E$83:E$85,'LISTE DES TIREURS'!F154)","v":0},null,1]
[73,null,null,{"$f":"INDEX('LISTE DES TIREURS'!E$83:E$85,'LISTE DES TIREURS'!F155)","v":0},null,1]
[74,null,null,{"$f":"INDEX('LISTE DES TIREURS'!E$83:E$85,'LISTE DES TIREURS'!F156)","v":0},null,1]
[75,null,null,{"$f":"INDEX('LISTE DES TIREURS'!E$83:E$85,'LISTE DES TIREURS'!F157)","v":0},null,1]
[76,null,null,{"$f":"INDEX('LISTE DES TIREURS'!E$83:E$85,'LISTE DES TIREURS'!F158)","v":0},null,1]
[77,null,null,{"$f":"INDEX('LISTE DES TIREURS'!E$83:E$85,'LISTE DES TIREURS'!F159)","v":0},null,1]
[78,null,null,{"$f":"INDEX('LISTE DES TIREURS'!E$83:E$85,'LISTE DES TIREURS'!F160)","v":0},null,1]
[79,null,null,{"$f":"INDEX('LISTE DES TIREURS'!E$83:E$85,'LISTE DES TIREURS'!F161)","v":0},null,1]
[80,null,null,{"$f":"INDEX('LISTE DES TIREURS'!E$83:E$85,'LISTE DES TIREURS'!F162)","v":0},null,1]
[81,null,null,{"$f":"INDEX('LISTE DES TIREURS'!E$83:E$85,'LISTE DES TIREURS'!F163)","v":0},null,1]
[82,null,null,{"$f":"INDEX('LISTE DES TIREURS'!E$83:E$85,'LISTE DES TIREURS'!F164)","v":0},null,1]
[83,null,null,{"$f":"INDEX('LISTE DES TIREURS'!E$83:E$85,'LISTE DES TIREURS'!F165)","v":0},null,1]
[84,null,null,{"$f":"INDEX('LISTE DES TIREURS'!E$83:E$85,'LISTE DES TIREURS'!F166)","v":0},null,1]
[85,null,null,{"$f":"INDEX('LISTE DES TIREURS'!E$83:E$85,'LISTE DES TIREURS'!F167)","v":0},null,1]
[86,null,null,{"$f":"INDEX('LISTE DES TIREURS'!E$83:E$85,'LISTE DES TIREURS'!F168)","v":0},null,1]
[87,null,null,{"$f":"INDEX('LISTE DES TIREURS'!E$83:E$85,'LISTE DES TIREURS'!F169)","v":0},null,1]
[88,null,null,{"$f":"INDEX('LISTE DES TIREURS'!E$83:E$85,'LISTE DES TIREURS'!F170)","v":0},null,1]
[89,null,null,{"$f":"INDEX('LISTE DES TIREURS'!E$83:E$85,'LISTE DES TIREURS'!F171)","v":0},null,1]
[90,null,null,{"$f":"INDEX('LISTE DES TIREURS'!E$83:E$85,'LISTE DES TIREURS'!F172)","v":0},null,1]
[91,null,null,{"$f":"INDEX('LISTE DES TIREURS'!E$83:E$85,'LISTE DES TIREURS'!F173)","v":0},null,1]
[92,null,null,{"$f":"INDEX('LISTE DES TIREURS'!E$83:E$85,'LISTE DES TIREURS'!F174)","v":0},null,1]
[93,null,null,{"$f":"INDEX('LISTE DES TIREURS'!E$83:E$85,'LISTE DES TIREURS'!F175)","v":0},null,1]
[94,null,null,{"$f":"INDEX('LISTE DES TIREURS'!E$83:E$85,'LISTE DES TIREURS'!F176)","v":0},null,1]
[95,null,null,{"$f":"INDEX('LISTE DES TIREURS'!E$83:E$85,'LISTE DES TIREURS'!F177)","v":0},null,1]
[96,null,null,{"$f":"INDEX('LISTE DES TIREURS'!E$83:E$85,'LISTE DES TIREURS'!F178)","v":0},null,1]
[97,null,null,{"$f":"INDEX('LISTE DES TIREURS'!E$83:E$85,'LISTE DES TIREURS'!F179)","v":0},null,1]
[98,null,null,{"$f":"INDEX('LISTE DES TIREURS'!E$83:E$85,'LISTE DES TIREURS'!F180)","v":0},null,1]
[99,null,null,{"$f":"INDEX('LISTE DES TIREURS'!E$83:E$85,'LISTE DES TIREURS'!F181)","v":0},null,1]
[100,null,null,{"$f":"INDEX('LISTE DES TIREURS'!E$83:E$85,'LISTE DES TIREURS'!F182)","v":0},null,1]
[101,null,null,{"$f":"INDEX('LISTE DES TIREURS'!E$83:E$85,'LISTE DES TIREURS'!F183)","v":0},null,1]
[102,null,null,{"$f":"INDEX('LISTE DES TIREURS'!E$83:E$85,'LISTE DES TIREURS'!F184)","v":0},null,1]
[103,null,null,{"$f":"INDEX('LISTE DES TIREURS'!E$83:E$85,'LISTE DES TIREURS'!F185)","v":0},null,1]
[104,null,null,{"$f":"INDEX('LISTE DES TIREURS'!E$83:E$85,'LISTE DES TIREURS'!F186)","v":0},null,1]
[105,null,null,{"$f":"INDEX('LISTE DES TIREURS'!E$83:E$85,'LISTE DES TIREURS'!F187)","v":0},null,1]
[106,null,null,{"$f":"INDEX('LISTE DES TIREURS'!E$83:E$85,'LISTE DES TIREURS'!F188)","v":0},null,1]
[107,null,null,{"$f":"INDEX('LISTE DES TIREURS'!E$83:E$85,'LISTE DES TIREURS'!F189)","v":0},null,1]
[108,null,null,{"$f":"INDEX('LISTE DES TIREURS'!E$83:E$85,'LISTE DES TIREURS'!F190)","v":0},null,1]
[109,null,null,{"$f":"INDEX('LISTE DES TIREURS'!E$83:E$85,'LISTE DES TIREURS'!F191)","v":0},null,1]
[110,null,null,{"$f":"INDEX('LISTE DES TIREURS'!E$83:E$85,'LISTE DES TIREURS'!F192)","v":0},null,1]
[111,null,null,{"$f":"INDEX('LISTE DES TIREURS'!E$83:E$85,'LISTE DES TIREURS'!F193)","v":0},null,1]
[112,null,null,{"$f":"INDEX('LISTE DES TIREURS'!E$83:E$85,'LISTE DES TIREURS'!F194)","v":0},null,1]
[113,null,null,{"$f":"INDEX('LISTE DES TIREURS'!E$83:E$85,'LISTE DES TIREURS'!F195)","v":0},null,1]
[114,null,null,{"$f":"INDEX('LISTE DES TIREURS'!E$83:E$85,'LISTE DES TIREURS'!F196)","v":0},null,1]
[115,null,null,{"$f":"INDEX('LISTE DES TIREURS'!E$83:E$85,'LISTE DES TIREURS'!F197)","v":0},null,1]
[116,null,null,{"$f":"INDEX('LISTE DES TIREURS'!E$83:E$85,'LISTE DES TIREURS'!F198)","v":0},null,1]
[117,null,null,{"$f":"INDEX('LISTE DES TIREURS'!E$83:E$85,'LISTE DES TIREURS'!F199)","v":0},null,1]
[118,null,null,{"$f":"INDEX('LISTE DES TIREURS'!E$83:E$85,'LISTE DES TIREURS'!F200)","v":0},null,1]
[119,null,null,{"$f":"INDEX('LISTE DES TIREURS'!E$83:E$85,'LISTE DES TIREURS'!F201)","v":0},null,1]
[120,null,null,{"$f":"INDEX('LISTE DES TIREURS'!E$83:E$85,'LISTE DES TIREURS'!F202)","v":0},null,1]
[null,null,null,null,null,1]
[null,null,null,null,null,1]
[null,null,null,null,null,1]
[null,null,null,null,null,1]
[null,null,null,null,null,1]
[null,null,null,null,null,1]
[null,null,null,null,null,1]
[null,null,null,null,null,1]

{"sheet":"FEUILLE D'INSCRIPTION","index":1,"n_rows":1035,"n_cols":24,"rows_kept":1035,"cut":false,"hidden":false,"merged":[[2,23,2,27],[10,0,11,0],[1,0,2,0],[1,1,2,1],[1,2,2,2],[1,3,2,3],[3,0,4,0],[3,1,4,1],[3,2,4,2],[3,3,4,3],[6,0,7,0],[6,1,7,1],[6,2,7,2],[6,3,7,3],[6,4,7,4],[5,1,5,2],[3,17,5,17],[0,14,1,16],[1,4,2,4],[3,4,4,4],[3,10,5,10],[3,12,5,12],[2,9,5,9],[4,14,4,16],[2,14,3,16]]}
["ANNEE - JAHR",null,null,null,"CATEGORIE","Entreprise",null,null,{"$f":"'LISTE DES TIREURS'!D2","v":2023},null,null,null,null,null,"Participation au tir",null,null,null,5]
[{"$f":"'LISTE DES TIREURS'!$D$2-59","v":1964},"à",{"$f":"'LISTE DES TIREURS'!$D$2-20","v":2003},"=","Elite             Dame","J.-C.S.SCIAGE SA",null,null,null,null,null,null,null,null,null,null,null,null,null,null,null,null,null,"A envoyer à :"]
[null,null,null,null,null,"Catégorie :","C","Equipe",73," N° de groupe",null,null,null,null,"Teilnahme Schießen",null,null,null,null,null,null,null,null,"hubert.thiemard@tir-interusines.ch"]
[{"$f":"'LISTE DES TIREURS'!$D$2-69","v":1954},"à",{"$f":"'LISTE DES TIREURS'!$D$2-60","v":1963},"=","Vétéran      Dame Vétéran","Liste des tireurs",null,null,null,null," N° d'équipe",null," Catégorie 2",null,null,null,null,"Tireur   à double"]
[null,null,null,null,null,"Nom prénom","Année nais.","Catégorie 1","Nom de groupe",null,null,"Entreprise - Firma",null,"Arme","Séance"]
["<",{"$f":"'LISTE DES TIREURS'!$D$2-70","v":1953},null,"=","Sénior Vétéran     ","Name Vorname","Geburtsjahr",null,"Gruppe",null,null,null,null,"Waffe","1e VE","2e SA","3e SA"]
[{"$f":"'LISTE DES TIREURS'!$D$2-19","v":2004},"à",{"$f":"'LISTE DES TIREURS'!$D$2-17","v":2006},"=","Junior             Junior Dame",{"$f":"INDEX('LISTE DES TIREURS'!B$74:B$194,'FEUILLE D''INSCRIPTION'!S7)","v":"SUDAN GERALDINE"},{"$f":"INDEX('LISTE DES TIREURS'!C$74:C$194,'FEUILLE D''INSCRIPTION'!S7)","v":1989},{"$f":"INDEX('FEUILLE D''INSCRIPTION'!U$7:U$15,'FEUILLE D''INSCRIPTION'!T7)","v":"DAME"},{"$f":"INDEX('LISTE DES TIREURS'!G$8:G$82,'FEUILLE D''INSCRIPTION'!V7)","v":"MITES A BETON 1"},{"$f":"INDEX('LISTE DES TIREURS'!F$8:F$82,'FEUILLE D''INSCRIPTION'!V7)","v":0},{"$f":"IF(F7>0,$I$3,\"\")","v":73},{"$f":"IF(F7>0,$F$2,\"\")","v":"J.-C.S.SCIAGE SA"},{"$f":"IF(F7>0,$G$3,\"\")","v":"C"},{"$f":"INDEX('LISTE DES TIREURS'!D$74:D$194,'FEUILLE D''INSCRIPTION'!S7)","v":"F90"},null,null,null,{"$f":"IF(S7=1,\"\",COUNTIFS($S$7:$S$181,S7))","v":1},6,5,null,3]
[null,null,null,null,null,{"$f":"INDEX('LISTE DES TIREURS'!B$74:B$194,'FEUILLE D''INSCRIPTION'!S8)","v":"SUDAN MURIELLE"},{"$f":"INDEX('LISTE DES TIREURS'!C$74:C$194,'FEUILLE D''INSCRIPTION'!S8)","v":1962},{"$f":"INDEX('FEUILLE D''INSCRIPTION'!U$7:U$15,'FEUILLE D''INSCRIPTION'!T8)","v":"ELITE"},{"$f":"INDEX('LISTE DES TIREURS'!G$8:G$82,'FEUILLE D''INSCRIPTION'!V8)","v":"MITES A BETON 1"},{"$f":"INDEX('LISTE DES TIREURS'!F$8:F$82,'FEUILLE D''INSCRIPTION'!V8)","v":0},{"$f":"IF(F8>0,$I$3,\"\")","v":73},{"$f":"IF(F8>0,$F$2,\"\")","v":"J.-C.S.SCIAGE SA"},{"$f":"IF(F8>0,$G$3,\"\")","v":"C"},{"$f":"INDEX('LISTE DES TIREURS'!D$74:D$194,'FEUILLE D''INSCRIPTION'!S8)","v":"F90"},null,null,null,1,8,2,"ELITE",3]
[{"$f":"'LISTE DES TIREURS'!$D$2-16","v":2007},"à",{"$f":"'LISTE DES TIREURS'!$D$2-10","v":2013},"=","Adolescent",{"$f":"INDEX('LISTE DES TIREURS'!B$74:B$194,'FEUILLE D''INSCRIPTION'!S9)","v":"SUDAN JEAN-CLAUDE"},{"$f":"INDEX('LISTE DES TIREURS'!C$74:C$194,'FEUILLE D''INSCRIPTION'!S9)","v":1959},{"$f":"INDEX('FEUILLE D''INSCRIPTION'!U$7:U$15,'FEUILLE D''INSCRIPTION'!T9)","v":"VETERAN"},{"$f":"INDEX('LISTE DES TIREURS'!G$8:G$82,'FEUILLE D''INSCRIPTION'!V9)","v":"MITES A BETON 1"},{"$f":"INDEX('LISTE DES TIREURS'!F$8:F$82,'FEUILLE D''INSCRIPTION'!V9)","v":0},73,"J.-C.S.SCIAGE SA","C",{"$f":"INDEX('LISTE DES TIREURS'!D$74:D$194,'FEUILLE D''INSCRIPTION'!S9)","v":"F57 / M"},null,null,null,{"$f":"IF(S9=1,\"\",COUNTIFS($S$7:$S$181,S9))","v":1},7,3,"VETERAN",3]
[null,null,null,null,null,{"$f":"INDEX('LISTE DES TIREURS'!B$74:B$194,'FEUILLE D''INSCRIPTION'!S10)","v":0},{"$f":"INDEX('LISTE DES TIREURS'!C$74:C$194,'FEUILLE D''INSCRIPTION'!S10)","v":0},{"$f":"INDEX('FEUILLE D''INSCRIPTION'!U$7:U$15,'FEUILLE D''INSCRIPTION'!T10)","v":"VETERAN"},{"$f":"INDEX('LISTE DES TIREURS'!G$8:G$82,'FEUILLE D''INSCRIPTION'!V10)","v":"MITES A BETON 1"},{"$f":"INDEX('LISTE DES TIREURS'!F$8:F$82,'FEUILLE D''INSCRIPTION'!V10)","v":0},"","","",{"$f":"INDEX('LISTE DES TIREURS'!D$74:D$194,'FEUILLE D''INSCRIPTION'!S10)","v":0},null,null,null,{"$f":"IF(S10=1,\"\",COUNTIFS($S$7:$S$181,S10))","v":1},13,3,"SENIOR VETERAN",3]
[null,null,null,null,null,{"$f":"INDEX('LISTE DES TIREURS'!B$74:B$194,'FEUILLE D''INSCRIPTION'!S11)","v":0},{"$f":"INDEX('LISTE DES TIREURS'!C$74:C$194,'FEUILLE D''INSCRIPTION'!S11)","v":0},{"$f":"INDEX('FEUILLE D''INSCRIPTION'!U$7:U$15,'FEUILLE D''INSCRIPTION'!T11)","v":"DAME"},{"$f":"INDEX('LISTE DES TIREURS'!G$8:G$82,'FEUILLE D''INSCRIPTION'!V11)","v":"MITES A BETON 1"},{"$f":"INDEX('LISTE DES TIREURS'!F$8:F$82,'FEUILLE D''INSCRIPTION'!V11)","v":0},{"$f":"IF(F11>0,$I$3,\"\")","v":""},"","",{"$f":"INDEX('LISTE DES TIREURS'!D$74:D$194,'FEUILLE D''INSCRIPTION'!S11)","v":0},null,null,null,1,14,5,"DAME",3]
[null,null,null,null,null,null,null,null,null,null,null,null,null,null,null,null,null,null,null,null,"DAME VETERAN"]
[null,null,null,null,null,{"$f":"INDEX('LISTE DES TIREURS'!B$74:B$194,'FEUILLE D''INSCRIPTION'!S13)","v":"PIATEK MATEUSZ"},{"$f":"INDEX('LISTE DES TIREURS'!C$74:C$194,'FEUILLE D''INSCRIPTION'!S13)","v":1991},{"$f":"INDEX('FEUILLE D''INSCRIPTION'!U$7:U$15,'FEUILLE D''INSCRIPTION'!T13)","v":"ELITE"},{"$f":"INDEX('LISTE DES TIREURS'!G$8:G$82,'FEUILLE D''INSCRIPTION'!V13)","v":"MITES A BETON 2"},{"$f":"INDEX('LISTE DES TIREURS'!F$8:F$82,'FEUILLE D''INSCRIPTION'!V13)","v":0},73,"J.-C.S.SCIAGE SA","C",{"$f":"INDEX('LISTE DES TIREURS'!D$74:D$194,'FEUILLE D''INSCRIPTION'!S13)","v":"F57 / M"},null,null,null,{"$f":"IF(S13=1,\"\",COUNTIFS($S$7:$S$181,S13))","v":1},2,2,"JUNIOR",4]
[null,null,null,null,null,{"$f":"INDEX('LISTE DES TIREURS'!B$74:B$194,'FEUILLE D''INSCRIPTION'!S14)","v":"RIESEN YVAN"},{"$f":"INDEX('LISTE DES TIREURS'!C$74:C$194,'FEUILLE D''INSCRIPTION'!S14)","v":1989},{"$f":"INDEX('FEUILLE D''INSCRIPTION'!U$7:U$15,'FEUILLE D''INSCRIPTION'!T14)","v":"ELITE"},{"$f":"INDEX('LISTE DES TIREURS'!G$8:G$82,'FEUILLE D''INSCRIPTION'!V14)","v":"MITES A BETON 2"},{"$f":"INDEX('LISTE DES TIREURS'!F$8:F$82,'FEUILLE D''INSCRIPTION'!V14)","v":0},73,"J.-C.S.SCIAGE SA","C",{"$f":"INDEX('LISTE DES TIREURS'!D$74:D$194,'FEUILLE D''INSCRIPTION'!S14)","v":"F90"},null,null,null,1,4,2,"JUNIOR DAME",4]
[null,null,null,null,null,{"$f":"INDEX('LISTE DES TIREURS'!B$74:B$194,'FEUILLE D''INSCRIPTION'!S15)","v":"SUDAN ANGELIQUE"},{"$f":"INDEX('LISTE DES TIREURS'!C$74:C$194,'FEUILLE D''INSCRIPTION'!S15)","v":1983},{"$f":"INDEX('FEUILLE D''INSCRIPTION'!U$7:U$15,'FEUILLE D''INSCRIPTION'!T15)","v":"ELITE"},{"$f":"INDEX('LISTE DES TIREURS'!G$8:G$82,'FEUILLE D''INSCRIPTION'!V15)","v":"MITES A BETON 2"},{"$f":"INDEX('LISTE DES TIREURS'!F$8:F$82,'FEUILLE D''INSCRIPTION'!V15)","v":0},73,"J.-C.S.SCIAGE SA","C",{"$f":"INDEX('LISTE DES TIREURS'!D$74:D$194,'FEUILLE D''INSCRIPTION'!S15)","v":"F90"},null,null,null,{"$f":"IF(S15=1,\"\",COUNTIFS($S$7:$S$181,S15))","v":1},5,2,"ADOLESCENT",4]
[null,null,null,null,null,{"$f":"INDEX('LISTE DES TIREURS'!B$74:B$194,'FEUILLE D''INSCRIPTION'!S16)","v":"THEVENAZ NICOLAS"},{"$f":"INDEX('LISTE DES TIREURS'!C$74:C$194,'FEUILLE D''INSCRIPTION'!S16)","v":1989},{"$f":"INDEX('FEUILLE D''INSCRIPTION'!U$7:U$15,'FEUILLE D''INSCRIPTION'!T16)","v":"DAME"},{"$f":"INDEX('LISTE DES TIREURS'!G$8:G$82,'FEUILLE D''INSCRIPTION'!V16)","v":"MITES A BETON 2"},{"$f":"INDEX('LISTE DES TIREURS'!F$8:F$82,'FEUILLE D''INSCRIPTION'!V16)","v":0},73,"J.-C.S.SCIAGE SA","C",{"$f":"INDEX('LISTE DES TIREURS'!D$74:D$194,'FEUILLE D''INSCRIPTION'!S16)","v":"F90"},null,null,null,{"$f":"IF(S16=1,\"\",COUNTIFS($S$7:$S$181,S16))","v":1},9,5,null,4]
[null,null,null,null,null,{"$f":"INDEX('LISTE DES TIREURS'!B$74:B$194,'FEUILLE D''INSCRIPTION'!S17)","v":0},{"$f":"INDEX('LISTE DES TIREURS'!C$74:C$194,'FEUILLE D''INSCRIPTION'!S17)","v":0},{"$f":"INDEX('FEUILLE D''INSCRIPTION'!U$7:U$15,'FEUILLE D''INSCRIPTION'!T17)","v":"ELITE"},{"$f":"INDEX('LISTE DES TIREURS'!G$8:G$82,'FEUILLE D''INSCRIPTION'!V17)","v":"MITES A BETON 2"},{"$f":"INDEX('LISTE DES TIREURS'!F$8:F$82,'FEUILLE D''INSCRIPTION'!V17)","v":0},"","","",{"$f":"INDEX('LISTE DES TIREURS'!D$74:D$194,'FEUILLE D''INSCRIPTION'!S17)","v":0},null,null,null,1,10,2,null,4]
[]
[null,null,null,null,null,{"$f":"INDEX('LISTE DES TIREURS'!B$74:B$194,'FEUILLE D''INSCRIPTION'!S19)","v":"PIATEK PAWEL"},{"$f":"INDEX('LISTE DES TIREURS'!C$74:C$194,'FEUILLE D''INSCRIPTION'!S19)","v":1974},{"$f":"INDEX('FEUILLE D''INSCRIPTION'!U$7:U$15,'FEUILLE D''INSCRIPTION'!T19)","v":"ELITE"},{"$f":"INDEX('LISTE DES TIREURS'!G$8:G$82,'FEUILLE D''INSCRIPTION'!V19)","v":"INDIVIDUEL"},{"$f":"INDEX('LISTE DES TIREURS'!F$8:F$82,'FEUILLE D''INSCRIPTION'!V19)","v":1},73,"J.-C.S.SCIAGE SA","C",{"$f":"INDEX('LISTE DES TIREURS'!D$74:D$194,'FEUILLE D''INSCRIPTION'!S19)","v":"F57 / M"},null,null,null,{"$f":"IF(S19=1,\"\",COUNTIFS($S$7:$S$181,S19))","v":1},3,2,null,2]
[null,null,null,null,null,{"$f":"INDEX('LISTE DES TIREURS'!B$74:B$194,'FEUILLE D''INSCRIPTION'!S20)","v":0},{"$f":"INDEX('LISTE DES TIREURS'!C$74:C$194,'FEUILLE D''INSCRIPTION'!S20)","v":0},{"$f":"INDEX('FEUILLE D''INSCRIPTION'!U$7:U$15,'FEUILLE D''INSCRIPTION'!T20)","v":"ELITE"},{"$f":"INDEX('LISTE DES TIREURS'!G$8:G$82,'FEUILLE D''INSCRIPTION'!V20)","v":"INDIVIDUEL"},{"$f":"INDEX('LISTE DES TIREURS'!F$8:F$82,'FEUILLE D''INSCRIPTION'!V20)","v":1},"","","",{"$f":"INDEX('LISTE DES TIREURS'!D$74:D$194,'FEUILLE D''INSCRIPTION'!S20)","v":0},null,null,null,1,11,2,null,2]
[null,null,null,null,null,{"$f":"INDEX('LISTE DES TIREURS'!B$74:B$194,'FEUILLE D''INSCRIPTION'!S21)","v":0},{"$f":"INDEX('LISTE DES TIREURS'!C$74:C$194,'FEUILLE D''INSCRIPTION'!S21)","v":0},{"$f":"INDEX('FEUILLE D''INSCRIPTION'!U$7:U$15,'FEUILLE D''INSCRIPTION'!T21)","v":"ELITE"},{"$f":"INDEX('LISTE DES TIREURS'!G$8:G$82,'FEUILLE D''INSCRIPTION'!V21)","v":"INDIVIDUEL"},{"$f":"INDEX('LISTE DES TIREURS'!F$8:F$82,'FEUILLE D''INSCRIPTION'!V21)","v":1},"","","",{"$f":"INDEX('LISTE DES TIREURS'!D$74:D$194,'FEUILLE D''INSCRIPTION'!S21)","v":0},null,null,null,{"$f":"IF(S21=1,\"\",COUNTIFS($S$7:$S$181,S21))","v":1},15,2,null,2]
[null,null,null,null,null,{"$f":"INDEX('LISTE DES TIREURS'!B$74:B$194,'FEUILLE D''INSCRIPTION'!S22)","v":0},{"$f":"INDEX('LISTE DES TIREURS'!C$74:C$194,'FEUILLE D''INSCRIPTION'!S22)","v":0},{"$f":"INDEX('FEUILLE D''INSCRIPTION'!U$7:U$15,'FEUILLE D''INSCRIPTION'!T22)","v":"DAME"},{"$f":"INDEX('LISTE DES TIREURS'!G$8:G$82,'FEUILLE D''INSCRIPTION'!V22)","v":"INDIVIDUEL"},{"$f":"INDEX('LISTE DES TIREURS'!F$8:F$82,'FEUILLE D''INSCRIPTION'!V22)","v":1},"","","",{"$f":"INDEX('LISTE DES TIREURS'!D$74:D$194,'FEUILLE D''INSCRIPTION'!S22)","v":0},null,null,null,{"$f":"IF(S22=1,\"\",COUNTIFS($S$7:$S$181,S22))","v":1},12,5,null,2]
[null,null,null,null,null,{"$f":"INDEX('LISTE DES TIREURS'!B$74:B$194,'FEUILLE D''INSCRIPTION'!S23)","v":0},{"$f":"INDEX('LISTE DES TIREURS'!C$74:C$194,'FEUILLE D''INSCRIPTION'!S23)","v":0},{"$f":"INDEX('FEUILLE D''INSCRIPTION'!U$7:U$15,'FEUILLE D''INSCRIPTION'!T23)","v":0},{"$f":"INDEX('LISTE DES TIREURS'!G$8:G$82,'FEUILLE D''INSCRIPTION'!V23)","v":0},{"$f":"INDEX('LISTE DES TIREURS'!F$8:F$82,'FEUILLE D''INSCRIPTION'!V23)","v":0},"","","",{"$f":"INDEX('LISTE DES TIREURS'!D$74:D$194,'FEUILLE D''INSCRIPTION'!S23)","v":0},null,null,null,1,20,1,null,5]
[]
[null,null,null,null,null,{"$f":"INDEX('LISTE DES TIREURS'!B$74:B$194,'FEUILLE D''INSCRIPTION'!S25)","v":0},{"$f":"INDEX('LISTE DES TIREURS'!C$74:C$194,'FEUILLE D''INSCRIPTION'!S25)","v":0},{"$f":"INDEX('FEUILLE D''INSCRIPTION'!U$7:U$15,'FEUILLE D''INSCRIPTION'!T25)","v":0},{"$f":"INDEX('LISTE DES TIREURS'!G$8:G$82,'FEUILLE D''INSCRIPTION'!V25)","v":0},{"$f":"INDEX('LISTE DES TIREURS'!F$8:F$82,'FEUILLE D''INSCRIPTION'!V25)","v":0},"","","",{"$f":"INDEX('LISTE DES TIREURS'!D$74:D$194,'FEUILLE D''INSCRIPTION'!S25)","v":0},null,null,null,{"$f":"IF(S25=1,\"\",COUNTIFS($S$7:$S$181,S25))","v":""},1,1,null,6]
[null,null,null,null,null,{"$f":"INDEX('LISTE DES TIREURS'!B$74:B$194,'FEUILLE D''INSCRIPTION'!S26)","v":0},{"$f":"INDEX('LISTE DES TIREURS'!C$74:C$194,'FEUILLE D''INSCRIPTION'!S26)","v":0},{"$f":"INDEX('FEUILLE D''INSCRIPTION'!U$7:U$15,'FEUILLE D''INSCRIPTION'!T26)","v":0},{"$f":"INDEX('LISTE DES TIREURS'!G$8:G$82,'FEUILLE D''INSCRIPTION'!V26)","v":0},{"$f":"INDEX('LISTE DES TIREURS'!F$8:F$82,'FEUILLE D''INSCRIPTION'!V26)","v":0},"","","",{"$f":"INDEX('LISTE DES TIREURS'!D$74:D$194,'FEUILLE D''INSCRIPTION'!S26)","v":0},null,null,null,1,28,1,null,6]
[null,null,null,null,null,{"$f":"INDEX('LISTE DES TIREURS'!B$74:B$194,'FEUILLE D''INSCRIPTION'!S27)","v":0},{"$f":"INDEX('LISTE DES TIREURS'!C$74:C$194,'FEUILLE D''INSCRIPTION'!S27)","v":0},{"$f":"INDEX('FEUILLE D''INSCRIPTION'!U$7:U$15,'FEUILLE D''INSCRIPTION'!T27)","v":0},{"$f":"INDEX('LISTE DES TIREURS'!G$8:G$82,'FEUILLE D''INSCRIPTION'!V27)","v":0},{"$f":"INDEX('LISTE DES TIREURS'!F$8:F$82,'FEUILLE D''INSCRIPTION'!V27)","v":0},"","","",{"$f":"INDEX('LISTE DES TIREURS'!D$74:D$194,'FEUILLE D''INSCRIPTION'!S27)","v":0},null,null,null,{"$f":"IF(S27=1,\"\",COUNTIFS($S$7:$S$181,S27))","v":1},19,1,null,6]
[null,null,null,null,null,{"$f":"INDEX('LISTE DES TIREURS'!B$74:B$194,'FEUILLE D''INSCRIPTION'!S28)","v":0},{"$f":"INDEX('LISTE DES TIREURS'!C$74:C$194,'FEUILLE D''INSCRIPTION'!S28)","v":0},{"$f":"INDEX('FEUILLE D''INSCRIPTION'!U$7:U$15,'FEUILLE D''INSCRIPTION'!T28)","v":0},{"$f":"INDEX('LISTE DES TIREURS'!G$8:G$82,'FEUILLE D''INSCRIPTION'!V28)","v":0},{"$f":"INDEX('LISTE DES TIREURS'!F$8:F$82,'FEUILLE D''INSCRIPTION'!V28)","v":0},"","","",{"$f":"INDEX('LISTE DES TIREURS'!D$74:D$194,'FEUILLE D''INSCRIPTION'!S28)","v":0},null,null,null,{"$f":"IF(S28=1,\"\",COUNTIFS($S$7:$S$181,S28))","v":1},25,1,null,6]
[null,null,null,null,null,{"$f":"INDEX('LISTE DES TIREURS'!B$74:B$194,'FEUILLE D''INSCRIPTION'!S29)","v":0},{"$f":"INDEX('LISTE DES TIREURS'!C$74:C$194,'FEUILLE D''INSCRIPTION'!S29)","v":0},{"$f":"INDEX('FEUILLE D''INSCRIPTION'!U$7:U$15,'FEUILLE D''INSCRIPTION'!T29)","v":0},{"$f":"INDEX('LISTE DES TIREURS'!G$8:G$82,'FEUILLE D''INSCRIPTION'!V29)","v":0},{"$f":"INDEX('LISTE DES TIREURS'!F$8:F$82,'FEUILLE D''INSCRIPTION'!V29)","v":0},"","","",{"$f":"INDEX('LISTE DES TIREURS'!D$74:D$194,'FEUILLE D''INSCRIPTION'!S29)","v":0},null,null,null,1,27,1,null,6]
[]
[null,null,null,null,null,{"$f":"INDEX('LISTE DES TIREURS'!B$74:B$194,'FEUILLE D''INSCRIPTION'!S31)","v":0},{"$f":"INDEX('LISTE DES TIREURS'!C$74:C$194,'FEUILLE D''INSCRIPTION'!S31)","v":0},{"$f":"INDEX('FEUILLE D''INSCRIPTION'!U$7:U$15,'FEUILLE D''INSCRIPTION'!T31)","v":0},{"$f":"INDEX('LISTE DES TIREURS'!G$8:G$82,'FEUILLE D''INSCRIPTION'!V31)","v":0},{"$f":"INDEX('LISTE DES TIREURS'!F$8:F$82,'FEUILLE D''INSCRIPTION'!V31)","v":0},"","","",{"$f":"INDEX('LISTE DES TIREURS'!D$74:D$194,'FEUILLE D''INSCRIPTION'!S31)","v":0},null,null,null,{"$f":"IF(S31=1,\"\",COUNTIFS($S$7:$S$181,S31))","v":1},22,1,null,7]
[null,null,null,null,null,{"$f":"INDEX('LISTE DES TIREURS'!B$74:B$194,'FEUILLE D''INSCRIPTION'!S32)","v":0},{"$f":"INDEX('LISTE DES TIREURS'!C$74:C$194,'FEUILLE D''INSCRIPTION'!S32)","v":0},{"$f":"INDEX('FEUILLE D''INSCRIPTION'!U$7:U$15,'FEUILLE D''INSCRIPTION'!T32)","v":0},{"$f":"INDEX('LISTE DES TIREURS'!G$8:G$82,'FEUILLE D''INSCRIPTION'!V32)","v":0},{"$f":"INDEX('LISTE DES TIREURS'!F$8:F$82,'FEUILLE D''INSCRIPTION'!V32)","v":0},"","","",{"$f":"INDEX('LISTE DES TIREURS'!D$74:D$194,'FEUILLE D''INSCRIPTION'!S32)","v":0},null,null,null,"",1,1,null,7]
[null,null,null,null,null,{"$f":"INDEX('LISTE DES TIREURS'!B$74:B$194,'FEUILLE D''INSCRIPTION'!S33)","v":0},{"$f":"INDEX('LISTE DES TIREURS'!C$74:C$194,'FEUILLE D''INSCRIPTION'!S33)","v":0},{"$f":"INDEX('FEUILLE D''INSCRIPTION'!U$7:U$15,'FEUILLE D''INSCRIPTION'!T33)","v":0},{"$f":"INDEX('LISTE DES TIREURS'!G$8:G$82,'FEUILLE D''INSCRIPTION'!V33)","v":0},{"$f":"INDEX('LISTE DES TIREURS'!F$8:F$82,'FEUILLE D''INSCRIPTION'!V33)","v":0},"","","",{"$f":"INDEX('LISTE DES TIREURS'!D$74:D$194,'FEUILLE D''INSCRIPTION'!S33)","v":0},null,null,null,{"$f":"IF(S33=1,\"\",COUNTIFS($S$7:$S$181,S33))","v":1},18,1,null,7]
[null,null,null,null,null,{"$f":"INDEX('LISTE DES TIREURS'!B$74:B$194,'FEUILLE D''INSCRIPTION'!S34)","v":0},{"$f":"INDEX('LISTE DES TIREURS'!C$74:C$194,'FEUILLE D''INSCRIPTION'!S34)","v":0},{"$f":"INDEX('FEUILLE D''INSCRIPTION'!U$7:U$15,'FEUILLE D''INSCRIPTION'!T34)","v":0},{"$f":"INDEX('LISTE DES TIREURS'!G$8:G$82,'FEUILLE D''INSCRIPTION'!V34)","v":0},{"$f":"INDEX('LISTE DES TIREURS'!F$8:F$82,'FEUILLE D''INSCRIPTION'!V34)","v":0},"","","",{"$f":"INDEX('LISTE DES TIREURS'!D$74:D$194,'FEUILLE D''INSCRIPTION'!S34)","v":0},null,null,null,{"$f":"IF(S34=1,\"\",COUNTIFS($S$7:$S$181,S34))","v":1},16,1,null,7]
[null,null,null,null,null,{"$f":"INDEX('LISTE DES TIREURS'!B$74:B$194,'FEUILLE D''INSCRIPTION'!S35)","v":0},{"$f":"INDEX('LISTE DES TIREURS'!C$74:C$194,'FEUILLE D''INSCRIPTION'!S35)","v":0},{"$f":"INDEX('FEUILLE D''INSCRIPTION'!U$7:U$15,'FEUILLE D''INSCRIPTION'!T35)","v":0},{"$f":"INDEX('LISTE DES TIREURS'!G$8:G$82,'FEUILLE D''INSCRIPTION'!V35)","v":0},{"$f":"INDEX('LISTE DES TIREURS'!F$8:F$82,'FEUILLE D''INSCRIPTION'!V35)","v":0},"","","",{"$f":"INDEX('LISTE DES TIREURS'!D$74:D$194,'FEUILLE D''INSCRIPTION'!S35)","v":0},null,null,null,1,17,1,null,7]
[]
[null,null,null,null,null,{"$f":"INDEX('LISTE DES TIREURS'!B$74:B$194,'FEUILLE D''INSCRIPTION'!S37)","v":0},{"$f":"INDEX('LISTE DES TIREURS'!C$74:C$194,'FEUILLE D''INSCRIPTION'!S37)","v":0},{"$f":"INDEX('FEUILLE D''INSCRIPTION'!U$7:U$15,'FEUILLE D''INSCRIPTION'!T37)","v":0},{"$f":"INDEX('LISTE DES TIREURS'!G$8:G$82,'FEUILLE D''INSCRIPTION'!V37)","v":0},{"$f":"INDEX('LISTE DES TIREURS'!F$8:F$82,'FEUILLE D''INSCRIPTION'!V37)","v":0},"","","",{"$f":"INDEX('LISTE DES TIREURS'!D$74:D$194,'FEUILLE D''INSCRIPTION'!S37)","v":0},null,null,null,{"$f":"IF(S37=1,\"\",COUNTIFS($S$7:$S$181,S37))","v":""},1,1,null,1]
[null,null,null,null,null,{"$f":"INDEX('LISTE DES TIREURS'!B$74:B$194,'FEUILLE D''INSCRIPTION'!S38)","v":0},{"$f":"INDEX('LISTE DES TIREURS'!C$74:C$194,'FEUILLE D''INSCRIPTION'!S38)","v":0},{"$f":"INDEX('FEUILLE D''INSCRIPTION'!U$7:U$15,'FEUILLE D''INSCRIPTION'!T38)","v":0},{"$f":"INDEX('LISTE DES TIREURS'!G$8:G$82,'FEUILLE D''INSCRIPTION'!V38)","v":0},{"$f":"INDEX('LISTE DES TIREURS'!F$8:F$82,'FEUILLE D''INSCRIPTION'!V38)","v":0},"","","",{"$f":"INDEX('LISTE DES TIREURS'!D$74:D$194,'FEUILLE D''INSCRIPTION'!S38)","v":0},null,null,null,"",1,1,null,1]
[null,null,null,null,null,{"$f":"INDEX('LISTE DES TIREURS'!B$74:B$194,'FEUILLE D''INSCRIPTION'!S39)","v":0},{"$f":"INDEX('LISTE DES TIREURS'!C$74:C$194,'FEUILLE D''INSCRIPTION'!S39)","v":0},{"$f":"INDEX('FEUILLE D''INSCRIPTION'!U$7:U$15,'FEUILLE D''INSCRIPTION'!T39)","v":0},{"$f":"INDEX('LISTE DES TIREURS'!G$8:G$82,'FEUILLE D''INSCRIPTION'!V39)","v":0},{"$f":"INDEX('LISTE DES TIREURS'!F$8:F$82,'FEUILLE D''INSCRIPTION'!V39)","v":0},"","","",{"$f":"INDEX('LISTE DES TIREURS'!D$74:D$194,'FEUILLE D''INSCRIPTION'!S39)","v":0},null,null,null,{"$f":"IF(S39=1,\"\",COUNTIFS($S$7:$S$181,S39))","v":1},32,1,null,1]
[null,null,null,null,null,{"$f":"INDEX('LISTE DES TIREURS'!B$74:B$194,'FEUILLE D''INSCRIPTION'!S40)","v":0},{"$f":"INDEX('LISTE DES TIREURS'!C$74:C$194,'FEUILLE D''INSCRIPTION'!S40)","v":0},{"$f":"INDEX('FEUILLE D''INSCRIPTION'!U$7:U$15,'FEUILLE D''INSCRIPTION'!T40)","v":0},{"$f":"INDEX('LISTE DES TIREURS'!G$8:G$82,'FEUILLE D''INSCRIPTION'!V40)","v":0},{"$f":"INDEX('LISTE DES TIREURS'!F$8:F$82,'FEUILLE D''INSCRIPTION'!V40)","v":0},"","","",{"$f":"INDEX('LISTE DES TIREURS'!D$74:D$194,'FEUILLE D''INSCRIPTION'!S40)","v":0},null,null,null,{"$f":"IF(S40=1,\"\",COUNTIFS($S$7:$S$181,S40))","v":1},33,1,null,1]
[null,null,null,null,null,{"$f":"INDEX('LISTE DES TIREURS'!B$74:B$194,'FEUILLE D''INSCRIPTION'!S41)","v":0},{"$f":"INDEX('LISTE DES TIREURS'!C$74:C$194,'FEUILLE D''INSCRIPTION'!S41)","v":0},{"$f":"INDEX('FEUILLE D''INSCRIPTION'!U$7:U$15,'FEUILLE D''INSCRIPTION'!T41)","v":0},{"$f":"INDEX('LISTE DES TIREURS'!G$8:G$82,'FEUILLE D''INSCRIPTION'!V41)","v":0},{"$f":"INDEX('LISTE DES TIREURS'!F$8:F$82,'FEUILLE D''INSCRIPTION'!V41)","v":0},"","","",{"$f":"INDEX('LISTE DES TIREURS'!D$74:D$194,'FEUILLE D''INSCRIPTION'!S41)","v":0},null,null,null,1,30,1,null,1]
[]
[null,null,null,null,null,{"$f":"INDEX('LISTE DES TIREURS'!B$74:B$194,'FEUILLE D''INSCRIPTION'!S43)","v":0},{"$f":"INDEX('LISTE DES TIREURS'!C$74:C$194,'FEUILLE D''INSCRIPTION'!S43)","v":0},{"$f":"INDEX('FEUILLE D''INSCRIPTION'!U$7:U$15,'FEUILLE D''INSCRIPTION'!T43)","v":0},{"$f":"INDEX('LISTE DES TIREURS'!G$8:G$82,'FEUILLE D''INSCRIPTION'!V43)","v":0},{"$f":"INDEX('LISTE DES TIREURS'!F$8:F$82,'FEUILLE D''INSCRIPTION'!V43)","v":0},"","","",{"$f":"INDEX('LISTE DES TIREURS'!D$74:D$194,'FEUILLE D''INSCRIPTION'!S43)","v":0},null,null,null,{"$f":"IF(S43=1,\"\",COUNTIFS($S$7:$S$181,S43))","v":1},37,1,null,1]
[null,null,null,null,null,{"$f":"INDEX('LISTE DES TIREURS'!B$74:B$194,'FEUILLE D''INSCRIPTION'!S44)","v":0},{"$f":"INDEX('LISTE DES TIREURS'!C$74:C$194,'FEUILLE D''INSCRIPTION'!S44)","v":0},{"$f":"INDEX('FEUILLE D''INSCRIPTION'!U$7:U$15,'FEUILLE D''INSCRIPTION'!T44)","v":0},{"$f":"INDEX('LISTE DES TIREURS'!G$8:G$82,'FEUILLE D''INSCRIPTION'!V44)","v":0},{"$f":"INDEX('LISTE DES TIREURS'!F$8:F$82,'FEUILLE D''INSCRIPTION'!V44)","v":0},"","","",{"$f":"INDEX('LISTE DES TIREURS'!D$74:D$194,'FEUILLE D''INSCRIPTION'!S44)","v":0},null,null,null,"",1,1,null,1]
[null,null,null,null,null,{"$f":"INDEX('LISTE DES TIREURS'!B$74:B$194,'FEUILLE D''INSCRIPTION'!S45)","v":0},{"$f":"INDEX('LISTE DES TIREURS'!C$74:C$194,'FEUILLE D''INSCRIPTION'!S45)","v":0},{"$f":"INDEX('FEUILLE D''INSCRIPTION'!U$7:U$15,'FEUILLE D''INSCRIPTION'!T45)","v":0},{"$f":"INDEX('LISTE DES TIREURS'!G$8:G$82,'FEUILLE D''INSCRIPTION'!V45)","v":0},{"$f":"INDEX('LISTE DES TIREURS'!F$8:F$82,'FEUILLE D''INSCRIPTION'!V45)","v":0},"","","",{"$f":"INDEX('LISTE DES TIREURS'!D$74:D$194,'FEUILLE D''INSCRIPTION'!S45)","v":0},null,null,null,{"$f":"IF(S45=1,\"\",COUNTIFS($S$7:$S$181,S45))","v":""},1,1,null,1]
[null,null,null,null,null,{"$f":"INDEX('LISTE DES TIREURS'!B$74:B$194,'FEUILLE D''INSCRIPTION'!S46)","v":0},{"$f":"INDEX('LISTE DES TIREURS'!C$74:C$194,'FEUILLE D''INSCRIPTION'!S46)","v":0},{"$f":"INDEX('FEUILLE D''INSCRIPTION'!U$7:U$15,'FEUILLE D''INSCRIPTION'!T46)","v":0},{"$f":"INDEX('LISTE DES TIREURS'!G$8:G$82,'FEUILLE D''INSCRIPTION'!V46)","v":0},{"$f":"INDEX('LISTE DES TIREURS'!F$8:F$82,'FEUILLE D''INSCRIPTION'!V46)","v":0},"","","",{"$f":"INDEX('LISTE DES TIREURS'!D$74:D$194,'FEUILLE D''INSCRIPTION'!S46)","v":0},null,null,null,{"$f":"IF(S46=1,\"\",COUNTIFS($S$7:$S$181,S46))","v":""},1,1,null,1]
[null,null,null,null,null,{"$f":"INDEX('LISTE DES TIREURS'!B$74:B$194,'FEUILLE D''INSCRIPTION'!S47)","v":0},{"$f":"INDEX('LISTE DES TIREURS'!C$74:C$194,'FEUILLE D''INSCRIPTION'!S47)","v":0},{"$f":"INDEX('FEUILLE D''INSCRIPTION'!U$7:U$15,'FEUILLE D''INSCRIPTION'!T47)","v":0},{"$f":"INDEX('LISTE DES TIREURS'!G$8:G$82,'FEUILLE D''INSCRIPTION'!V47)","v":0},{"$f":"INDEX('LISTE DES TIREURS'!F$8:F$82,'FEUILLE D''INSCRIPTION'!V47)","v":0},"","","",{"$f":"INDEX('LISTE DES TIREURS'!D$74:D$194,'FEUILLE D''INSCRIPTION'!S47)","v":0},null,null,null,"",1,1,null,1]
[]
[null,null,null,null,null,{"$f":"INDEX('LISTE DES TIREURS'!B$74:B$194,'FEUILLE D''INSCRIPTION'!S49)","v":0},{"$f":"INDEX('LISTE DES TIREURS'!C$74:C$194,'FEUILLE D''INSCRIPTION'!S49)","v":0},{"$f":"INDEX('FEUILLE D''INSCRIPTION'!U$7:U$15,'FEUILLE D''INSCRIPTION'!T49)","v":0},{"$f":"INDEX('LISTE DES TIREURS'!G$8:G$82,'FEUILLE D''INSCRIPTION'!V49)","v":0},{"$f":"INDEX('LISTE DES TIREURS'!F$8:F$82,'FEUILLE D''INSCRIPTION'!V49)","v":0},"","","",{"$f":"INDEX('LISTE DES TIREURS'!D$74:D$194,'FEUILLE D''INSCRIPTION'!S49)","v":0},null,null,null,{"$f":"IF(S49=1,\"\",COUNTIFS($S$7:$S$181,S49))","v":""},1,1,null,12]
[null,null,null,null,null,{"$f":"INDEX('LISTE DES TIREURS'!B$74:B$194,'FEUILLE D''INSCRIPTION'!S50)","v":0},{"$f":"INDEX('LISTE DES TIREURS'!C$74:C$194,'FEUILLE D''INSCRIPTION'!S50)","v":0},{"$f":"INDEX('FEUILLE D''INSCRIPTION'!U$7:U$15,'FEUILLE D''INSCRIPTION'!T50)","v":0},{"$f":"INDEX('LISTE DES TIREURS'!G$8:G$82,'FEUILLE D''INSCRIPTION'!V50)","v":0},{"$f":"INDEX('LISTE DES TIREURS'!F$8:F$82,'FEUILLE D''INSCRIPTION'!V50)","v":0},"","","",{"$f":"INDEX('LISTE DES TIREURS'!D$74:D$194,'FEUILLE D''INSCRIPTION'!S50)","v":0},null,null,null,"",1,1,null,12]
[null,null,null,null,null,{"$f":"INDEX('LISTE DES TIREURS'!B$74:B$194,'FEUILLE D''INSCRIPTION'!S51)","v":0},{"$f":"INDEX('LISTE DES TIREURS'!C$74:C$194,'FEUILLE D''INSCRIPTION'!S51)","v":0},{"$f":"INDEX('FEUILLE D''INSCRIPTION'!U$7:U$15,'FEUILLE D''INSCRIPTION'!T51)","v":0},{"$f":"INDEX('LISTE DES TIREURS'!G$8:G$82,'FEUILLE D''INSCRIPTION'!V51)","v":0},{"$f":"INDEX('LISTE DES TIREURS'!F$8:F$82,'FEUILLE D''INSCRIPTION'!V51)","v":0},"","","",{"$f":"INDEX('LISTE DES TIREURS'!D$74:D$194,'FEUILLE D''INSCRIPTION'!S51)","v":0},null,null,null,{"$f":"IF(S51=1,\"\",COUNTIFS($S$7:$S$181,S51))","v":""},1,1,null,12]
[null,null,null,null,null,{"$f":"INDEX('LISTE DES TIREURS'!B$74:B$194,'FEUILLE D''INSCRIPTION'!S52)","v":0},{"$f":"INDEX('LISTE DES TIREURS'!C$74:C$194,'FEUILLE D''INSCRIPTION'!S52)","v":0},{"$f":"INDEX('FEUILLE D''INSCRIPTION'!U$7:U$15,'FEUILLE D''INSCRIPTION'!T52)","v":0},{"$f":"INDEX('LISTE DES TIREURS'!G$8:G$82,'FEUILLE D''INSCRIPTION'!V52)","v":0},{"$f":"INDEX('LISTE DES TIREURS'!F$8:F$82,'FEUILLE D''INSCRIPTION'!V52)","v":0},"","","",{"$f":"INDEX('LISTE DES TIREURS'!D$74:D$194,'FEUILLE D''INSCRIPTION'!S52)","v":0},null,null,null,{"$f":"IF(S52=1,\"\",COUNTIFS($S$7:$S$181,S52))","v":""},1,1,null,12]
[null,null,null,null,null,{"$f":"INDEX('LISTE DES TIREURS'!B$74:B$194,'FEUILLE D''INSCRIPTION'!S53)","v":0},{"$f":"INDEX('LISTE DES TIREURS'!C$74:C$194,'FEUILLE D''INSCRIPTION'!S53)","v":0},{"$f":"INDEX('FEUILLE D''INSCRIPTION'!U$7:U$15,'FEUILLE D''INSCRIPTION'!T53)","v":0},{"$f":"INDEX('LISTE DES TIREURS'!G$8:G$82,'FEUILLE D''INSCRIPTION'!V53)","v":0},{"$f":"INDEX('LISTE DES TIREURS'!F$8:F$82,'FEUILLE D''INSCRIPTION'!V53)","v":0},"","","",{"$f":"INDEX('LISTE DES TIREURS'!D$74:D$194,'FEUILLE D''INSCRIPTION'!S53)","v":0},null,null,null,"",1,1,null,12]
[]
[null,null,null,null,null,{"$f":"INDEX('LISTE DES TIREURS'!B$74:B$194,'FEUILLE D''INSCRIPTION'!S55)","v":0},{"$f":"INDEX('LISTE DES TIREURS'!C$74:C$194,'FEUILLE D''INSCRIPTION'!S55)","v":0},{"$f":"INDEX('FEUILLE D''INSCRIPTION'!U$7:U$15,'FEUILLE D''INSCRIPTION'!T55)","v":0},{"$f":"INDEX('LISTE DES TIREURS'!G$8:G$82,'FEUILLE D''INSCRIPTION'!V55)","v":0},{"$f":"INDEX('LISTE DES TIREURS'!F$8:F$82,'FEUILLE D''INSCRIPTION'!V55)","v":0},"","","",{"$f":"INDEX('LISTE DES TIREURS'!D$74:D$194,'FEUILLE D''INSCRIPTION'!S55)","v":0},null,null,null,{"$f":"IF(S55=1,\"\",COUNTIFS($S$7:$S$181,S55))","v":""},1,1,null,20]
[null,null,null,null,null,{"$f":"INDEX('LISTE DES TIREURS'!B$74:B$194,'FEUILLE D''INSCRIPTION'!S56)","v":0},{"$f":"INDEX('LISTE DES TIREURS'!C$74:C$194,'FEUILLE D''INSCRIPTION'!S56)","v":0},{"$f":"INDEX('FEUILLE D''INSCRIPTION'!U$7:U$15,'FEUILLE D''INSCRIPTION'!T56)","v":0},{"$f":"INDEX('LISTE DES TIREURS'!G$8:G$82,'FEUILLE D''INSCRIPTION'!V56)","v":0},{"$f":"INDEX('LISTE DES TIREURS'!F$8:F$82,'FEUILLE D''INSCRIPTION'!V56)","v":0},"","","",{"$f":"INDEX('LISTE DES TIREURS'!D$74:D$194,'FEUILLE D''INSCRIPTION'!S56)","v":0},null,null,null,"",1,1,null,20]
[null,null,null,null,null,{"$f":"INDEX('LISTE DES TIREURS'!B$74:B$194,'FEUILLE D''INSCRIPTION'!S57)","v":0},{"$f":"INDEX('LISTE DES TIREURS'!C$74:C$194,'FEUILLE D''INSCRIPTION'!S57)","v":0},{"$f":"INDEX('FEUILLE D''INSCRIPTION'!U$7:U$15,'FEUILLE D''INSCRIPTION'!T57)","v":0},{"$f":"INDEX('LISTE DES TIREURS'!G$8:G$82,'FEUILLE D''INSCRIPTION'!V57)","v":0},{"$f":"INDEX('LISTE DES TIREURS'!F$8:F$82,'FEUILLE D''INSCRIPTION'!V57)","v":0},"","","",{"$f":"INDEX('LISTE DES TIREURS'!D$74:D$194,'FEUILLE D''INSCRIPTION'!S57)","v":0},null,null,null,{"$f":"IF(S57=1,\"\",COUNTIFS($S$7:$S$181,S57))","v":""},1,1,null,20]
[null,null,null,null,null,{"$f":"INDEX('LISTE DES TIREURS'!B$74:B$194,'FEUILLE D''INSCRIPTION'!S58)","v":0},{"$f":"INDEX('LISTE DES TIREURS'!C$74:C$194,'FEUILLE D''INSCRIPTION'!S58)","v":0},{"$f":"INDEX('FEUILLE D''INSCRIPTION'!U$7:U$15,'FEUILLE D''INSCRIPTION'!T58)","v":0},{"$f":"INDEX('LISTE DES TIREURS'!G$8:G$82,'FEUILLE D''INSCRIPTION'!V58)","v":0},{"$f":"INDEX('LISTE DES TIREURS'!F$8:F$82,'FEUILLE D''INSCRIPTION'!V58)","v":0},"","","",{"$f":"INDEX('LISTE DES TIREURS'!D$74:D$194,'FEUILLE D''INSCRIPTION'!S58)","v":0},null,null,null,{"$f":"IF(S58=1,\"\",COUNTIFS($S$7:$S$181,S58))","v":""},1,1,null,20]
[null,null,null,null,null,{"$f":"INDEX('LISTE DES TIREURS'!B$74:B$194,'FEUILLE D''INSCRIPTION'!S59)","v":0},{"$f":"INDEX('LISTE DES TIREURS'!C$74:C$194,'FEUILLE D''INSCRIPTION'!S59)","v":0},{"$f":"INDEX('FEUILLE D''INSCRIPTION'!U$7:U$15,'FEUILLE D''INSCRIPTION'!T59)","v":0},{"$f":"INDEX('LISTE DES TIREURS'!G$8:G$82,'FEUILLE D''INSCRIPTION'!V59)","v":0},{"$f":"INDEX('LISTE DES TIREURS'!F$8:F$82,'FEUILLE D''INSCRIPTION'!V59)","v":0},"","","",{"$f":"INDEX('LISTE DES TIREURS'!D$74:D$194,'FEUILLE D''INSCRIPTION'!S59)","v":0},null,null,null,"",1,1,null,20]
[]
[null,null,null,null,null,{"$f":"INDEX('LISTE DES TIREURS'!B$74:B$194,'FEUILLE D''INSCRIPTION'!S61)","v":0},{"$f":"INDEX('LISTE DES TIREURS'!C$74:C$194,'FEUILLE D''INSCRIPTION'!S61)","v":0},{"$f":"INDEX('FEUILLE D''INSCRIPTION'!U$7:U$15,'FEUILLE D''INSCRIPTION'!T61)","v":0},{"$f":"INDEX('LISTE DES TIREURS'!G$8:G$82,'FEUILLE D''INSCRIPTION'!V61)","v":0},{"$f":"INDEX('LISTE DES TIREURS'!F$8:F$82,'FEUILLE D''INSCRIPTION'!V61)","v":0},"","","",{"$f":"INDEX('LISTE DES TIREURS'!D$74:D$194,'FEUILLE D''INSCRIPTION'!S61)","v":0},null,null,null,{"$f":"IF(S61=1,\"\",COUNTIFS($S$7:$S$181,S61))","v":""},1,1,null,16]
[null,null,null,null,null,{"$f":"INDEX('LISTE DES TIREURS'!B$74:B$194,'FEUILLE D''INSCRIPTION'!S62)","v":0},{"$f":"INDEX('LISTE DES TIREURS'!C$74:C$194,'FEUILLE D''INSCRIPTION'!S62)","v":0},{"$f":"INDEX('FEUILLE D''INSCRIPTION'!U$7:U$15,'FEUILLE D''INSCRIPTION'!T62)","v":0},{"$f":"INDEX('LISTE DES TIREURS'!G$8:G$82,'FEUILLE D''INSCRIPTION'!V62)","v":0},{"$f":"INDEX('LISTE DES TIREURS'!F$8:F$82,'FEUILLE D''INSCRIPTION'!V62)","v":0},"","","",{"$f":"INDEX('LISTE DES TIREURS'!D$74:D$194,'FEUILLE D''INSCRIPTION'!S62)","v":0},null,null,null,"",1,1,null,16]
[null,null,null,null,null,{"$f":"INDEX('LISTE DES TIREURS'!B$74:B$194,'FEUILLE D''INSCRIPTION'!S63)","v":0},{"$f":"INDEX('LISTE DES TIREURS'!C$74:C$194,'FEUILLE D''INSCRIPTION'!S63)","v":0},{"$f":"INDEX('FEUILLE D''INSCRIPTION'!U$7:U$15,'FEUILLE D''INSCRIPTION'!T63)","v":0},{"$f":"INDEX('LISTE DES TIREURS'!G$8:G$82,'FEUILLE D''INSCRIPTION'!V63)","v":0},{"$f":"INDEX('LISTE DES TIREURS'!F$8:F$82,'FEUILLE D''INSCRIPTION'!V63)","v":0},"","","",{"$f":"INDEX('LISTE DES TIREURS'!D$74:D$194,'FEUILLE D''INSCRIPTION'!S63)","v":0},null,null,null,{"$f":"IF(S63=1,\"\",COUNTIFS($S$7:$S$181,S63))","v":""},1,1,null,16]
[null,null,null,null,null,{"$f":"INDEX('LISTE DES TIREURS'!B$74:B$194,'FEUILLE D''INSCRIPTION'!S64)","v":0},{"$f":"INDEX('LISTE DES TIREURS'!C$74:C$194,'FEUILLE D''INSCRIPTION'!S64)","v":0},{"$f":"INDEX('FEUILLE D''INSCRIPTION'!U$7:U$15,'FEUILLE D''INSCRIPTION'!T64)","v":0},{"$f":"INDEX('LISTE DES TIREURS'!G$8:G$82,'FEUILLE D''INSCRIPTION'!V64)","v":0},{"$f":"INDEX('LISTE DES TIREURS'!F$8:F$82,'FEUILLE D''INSCRIPTION'!V64)","v":0},"","","",{"$f":"INDEX('LISTE DES TIREURS'!D$74:D$194,'FEUILLE D''INSCRIPTION'!S64)","v":0},null,null,null,{"$f":"IF(S64=1,\"\",COUNTIFS($S$7:$S$181,S64))","v":""},1,1,null,16]
[null,null,null,null,null,{"$f":"INDEX('LISTE DES TIREURS'!B$74:B$194,'FEUILLE D''INSCRIPTION'!S65)","v":0},{"$f":"INDEX('LISTE DES TIREURS'!C$74:C$194,'FEUILLE D''INSCRIPTION'!S65)","v":0},{"$f":"INDEX('FEUILLE D''INSCRIPTION'!U$7:U$15,'FEUILLE D''INSCRIPTION'!T65)","v":0},{"$f":"INDEX('LISTE DES TIREURS'!G$8:G$82,'FEUILLE D''INSCRIPTION'!V65)","v":0},{"$f":"INDEX('LISTE DES TIREURS'!F$8:F$82,'FEUILLE D''INSCRIPTION'!V65)","v":0},"","","",{"$f":"INDEX('LISTE DES TIREURS'!D$74:D$194,'FEUILLE D''INSCRIPTION'!S65)","v":0},null,null,null,"",1,1,null,16]
[]
[null,null,null,null,null,{"$f":"INDEX('LISTE DES TIREURS'!B$74:B$194,'FEUILLE D''INSCRIPTION'!S67)","v":0},{"$f":"INDEX('LISTE DES TIREURS'!C$74:C$194,'FEUILLE D''INSCRIPTION'!S67)","v":0},{"$f":"INDEX('FEUILLE D''INSCRIPTION'!U$7:U$15,'FEUILLE D''INSCRIPTION'!T67)","v":0},{"$f":"INDEX('LISTE DES TIREURS'!G$8:G$82,'FEUILLE D''INSCRIPTION'!V67)","v":0},{"$f":"INDEX('LISTE DES TIREURS'!F$8:F$82,'FEUILLE D''INSCRIPTION'!V67)","v":0},"","","",{"$f":"INDEX('LISTE DES TIREURS'!D$74:D$194,'FEUILLE D''INSCRIPTION'!S67)","v":0},null,null,null,{"$f":"IF(S67=1,\"\",COUNTIFS($S$7:$S$181,S67))","v":""},1,1,null,1]
[null,null,null,null,null,{"$f":"INDEX('LISTE DES TIREURS'!B$74:B$194,'FEUILLE D''INSCRIPTION'!S68)","v":0},{"$f":"INDEX('LISTE DES TIREURS'!C$74:C$194,'FEUILLE D''INSCRIPTION'!S68)","v":0},{"$f":"INDEX('FEUILLE D''INSCRIPTION'!U$7:U$15,'FEUILLE D''INSCRIPTION'!T68)","v":0},{"$f":"INDEX('LISTE DES TIREURS'!G$8:G$82,'FEUILLE D''INSCRIPTION'!V68)","v":0},{"$f":"INDEX('LISTE DES TIREURS'!F$8:F$82,'FEUILLE D''INSCRIPTION'!V68)","v":0},"","","",{"$f":"INDEX('LISTE DES TIREURS'!D$74:D$194,'FEUILLE D''INSCRIPTION'!S68)","v":0},null,null,null,"",1,1,null,1]
[null,null,null,null,null,{"$f":"INDEX('LISTE DES TIREURS'!B$74:B$194,'FEUILLE D''INSCRIPTION'!S69)","v":0},{"$f":"INDEX('LISTE DES TIREURS'!C$74:C$194,'FEUILLE D''INSCRIPTION'!S69)","v":0},{"$f":"INDEX('FEUILLE D''INSCRIPTION'!U$7:U$15,'FEUILLE D''INSCRIPTION'!T69)","v":0},{"$f":"INDEX('LISTE DES TIREURS'!G$8:G$82,'FEUILLE D''INSCRIPTION'!V69)","v":0},{"$f":"INDEX('LISTE DES TIREURS'!F$8:F$82,'FEUILLE D''INSCRIPTION'!V69)","v":0},"","","",{"$f":"INDEX('LISTE DES TIREURS'!D$74:D$194,'FEUILLE D''INSCRIPTION'!S69)","v":0},null,null,null,{"$f":"IF(S69=1,\"\",COUNTIFS($S$7:$S$181,S69))","v":""},1,1,null,1]
[null,null,null,null,null,{"$f":"INDEX('LISTE DES TIREURS'!B$74:B$194,'FEUILLE D''INSCRIPTION'!S70)","v":0},{"$f":"INDEX('LISTE DES TIREURS'!C$74:C$194,'FEUILLE D''INSCRIPTION'!S70)","v":0},{"$f":"INDEX('FEUILLE D''INSCRIPTION'!U$7:U$15,'FEUILLE D''INSCRIPTION'!T70)","v":0},{"$f":"INDEX('LISTE DES TIREURS'!G$8:G$82,'FEUILLE D''INSCRIPTION'!V70)","v":0},{"$f":"INDEX('LISTE DES TIREURS'!F$8:F$82,'FEUILLE D''INSCRIPTION'!V70)","v":0},"","","",{"$f":"INDEX('LISTE DES TIREURS'!D$74:D$194,'FEUILLE D''INSCRIPTION'!S70)","v":0},null,null,null,{"$f":"IF(S70=1,\"\",COUNTIFS($S$7:$S$181,S70))","v":""},1,1,null,1]
[null,null,null,null,null,{"$f":"INDEX('LISTE DES TIREURS'!B$74:B$194,'FEUILLE D''INSCRIPTION'!S71)","v":0},{"$f":"INDEX('LISTE DES TIREURS'!C$74:C$194,'FEUILLE D''INSCRIPTION'!S71)","v":0},{"$f":"INDEX('FEUILLE D''INSCRIPTION'!U$7:U$15,'FEUILLE D''INSCRIPTION'!T71)","v":0},{"$f":"INDEX('LISTE DES TIREURS'!G$8:G$82,'FEUILLE D''INSCRIPTION'!V71)","v":0},{"$f":"INDEX('LISTE DES TIREURS'!F$8:F$82,'FEUILLE D''INSCRIPTION'!V71)","v":0},"","","",{"$f":"INDEX('LISTE DES TIREURS'!D$74:D$194,'FEUILLE D''INSCRIPTION'!S71)","v":0},null,null,null,"",1,1,null,1]
[]
[null,null,null,null,null,{"$f":"INDEX('LISTE DES TIREURS'!B$74:B$194,'FEUILLE D''INSCRIPTION'!S73)","v":0},{"$f":"INDEX('LISTE DES TIREURS'!C$74:C$194,'FEUILLE D''INSCRIPTION'!S73)","v":0},{"$f":"INDEX('FEUILLE D''INSCRIPTION'!U$7:U$15,'FEUILLE D''INSCRIPTION'!T73)","v":0},{"$f":"INDEX('LISTE DES TIREURS'!G$8:G$82,'FEUILLE D''INSCRIPTION'!V73)","v":0},{"$f":"INDEX('LISTE DES TIREURS'!F$8:F$82,'FEUILLE D''INSCRIPTION'!V73)","v":0},{"$f":"IF(F73>0,$I$3,\"\")","v":""},{"$f":"IF(F73>0,$F$2,\"\")","v":""},{"$f":"IF(F73>0,$G$3,\"\")","v":""},{"$f":"INDEX('LISTE DES TIREURS'!D$74:D$194,'FEUILLE D''INSCRIPTION'!S73)","v":0},null,null,null,{"$f":"IF(S73=1,\"\",COUNTIFS($S$7:$S$181,S73))","v":""},1,1,null,15]
[null,null,null,null,null,{"$f":"INDEX('LISTE DES TIREURS'!B$74:B$194,'FEUILLE D''INSCRIPTION'!S74)","v":0},{"$f":"INDEX('LISTE DES TIREURS'!C$74:C$194,'FEUILLE D''INSCRIPTION'!S74)","v":0},{"$f":"INDEX('FEUILLE D''INSCRIPTION'!U$7:U$15,'FEUILLE D''INSCRIPTION'!T74)","v":0},{"$f":"INDEX('LISTE DES TIREURS'!G$8:G$82,'FEUILLE D''INSCRIPTION'!V74)","v":0},{"$f":"INDEX('LISTE DES TIREURS'!F$8:F$82,'FEUILLE D''INSCRIPTION'!V74)","v":0},"","","",{"$f":"INDEX('LISTE DES TIREURS'!D$74:D$194,'FEUILLE D''INSCRIPTION'!S74)","v":0},null,null,null,"",1,1,null,15]
[null,null,null,null,null,{"$f":"INDEX('LISTE DES TIREURS'!B$74:B$194,'FEUILLE D''INSCRIPTION'!S75)","v":0},{"$f":"INDEX('LISTE DES TIREURS'!C$74:C$194,'FEUILLE D''INSCRIPTION'!S75)","v":0},{"$f":"INDEX('FEUILLE D''INSCRIPTION'!U$7:U$15,'FEUILLE D''INSCRIPTION'!T75)","v":0},{"$f":"INDEX('LISTE DES TIREURS'!G$8:G$82,'FEUILLE D''INSCRIPTION'!V75)","v":0},{"$f":"INDEX('LISTE DES TIREURS'!F$8:F$82,'FEUILLE D''INSCRIPTION'!V75)","v":0},"","","",{"$f":"INDEX('LISTE DES TIREURS'!D$74:D$194,'FEUILLE D''INSCRIPTION'!S75)","v":0},null,null,null,{"$f":"IF(S75=1,\"\",COUNTIFS($S$7:$S$181,S75))","v":""},1,1,null,15]
[null,null,null,null,null,{"$f":"INDEX('LISTE DES TIREURS'!B$74:B$194,'FEUILLE D''INSCRIPTION'!S76)","v":0},{"$f":"INDEX('LISTE DES TIREURS'!C$74:C$194,'FEUILLE D''INSCRIPTION'!S76)","v":0},{"$f":"INDEX('FEUILLE D''INSCRIPTION'!U$7:U$15,'FEUILLE D''INSCRIPTION'!T76)","v":0},{"$f":"INDEX('LISTE DES TIREURS'!G$8:G$82,'FEUILLE D''INSCRIPTION'!V76)","v":0},{"$f":"INDEX('LISTE DES TIREURS'!F$8:F$82,'FEUILLE D''INSCRIPTION'!V76)","v":0},"","","",{"$f":"INDEX('LISTE DES TIREURS'!D$74:D$194,'FEUILLE D''INSCRIPTION'!S76)","v":0},null,null,null,{"$f":"IF(S76=1,\"\",COUNTIFS($S$7:$S$181,S76))","v":""},1,1,null,15]
[null,null,null,null,null,{"$f":"INDEX('LISTE DES TIREURS'!B$74:B$194,'FEUILLE D''INSCRIPTION'!S77)","v":0},{"$f":"INDEX('LISTE DES TIREURS'!C$74:C$194,'FEUILLE D''INSCRIPTION'!S77)","v":0},{"$f":"INDEX('FEUILLE D''INSCRIPTION'!U$7:U$15,'FEUILLE D''INSCRIPTION'!T77)","v":0},{"$f":"INDEX('LISTE DES TIREURS'!G$8:G$82,'FEUILLE D''INSCRIPTION'!V77)","v":0},{"$f":"INDEX('LISTE DES TIREURS'!F$8:F$82,'FEUILLE D''INSCRIPTION'!V77)","v":0},"","","",{"$f":"INDEX('LISTE DES TIREURS'!D$74:D$194,'FEUILLE D''INSCRIPTION'!S77)","v":0},null,null,null,"",1,1,null,15]
[]
[null,null,null,null,null,{"$f":"INDEX('LISTE DES TIREURS'!B$74:B$194,'FEUILLE D''INSCRIPTION'!S79)","v":0},{"$f":"INDEX('LISTE DES TIREURS'!C$74:C$194,'FEUILLE D''INSCRIPTION'!S79)","v":0},{"$f":"INDEX('FEUILLE D''INSCRIPTION'!U$7:U$15,'FEUILLE D''INSCRIPTION'!T79)","v":0},{"$f":"INDEX('LISTE DES TIREURS'!G$8:G$82,'FEUILLE D''INSCRIPTION'!V79)","v":0},{"$f":"INDEX('LISTE DES TIREURS'!F$8:F$82,'FEUILLE D''INSCRIPTION'!V79)","v":0},"","","",{"$f":"INDEX('LISTE DES TIREURS'!D$74:D$194,'FEUILLE D''INSCRIPTION'!S79)","v":0},null,null,null,{"$f":"IF(S79=1,\"\",COUNTIFS($S$7:$S$181,S79))","v":""},1,1,null,13]
[null,null,null,null,null,{"$f":"INDEX('LISTE DES TIREURS'!B$74:B$194,'FEUILLE D''INSCRIPTION'!S80)","v":0},{"$f":"INDEX('LISTE DES TIREURS'!C$74:C$194,'FEUILLE D''INSCRIPTION'!S80)","v":0},{"$f":"INDEX('FEUILLE D''INSCRIPTION'!U$7:U$15,'FEUILLE D''INSCRIPTION'!T80)","v":0},{"$f":"INDEX('LISTE DES TIREURS'!G$8:G$82,'FEUILLE D''INSCRIPTION'!V80)","v":0},{"$f":"INDEX('LISTE DES TIREURS'!F$8:F$82,'FEUILLE D''INSCRIPTION'!V80)","v":0},"","","",{"$f":"INDEX('LISTE DES TIREURS'!D$74:D$194,'FEUILLE D''INSCRIPTION'!S80)","v":0},null,null,null,"",1,1,null,13]
[null,null,null,null,null,{"$f":"INDEX('LISTE DES TIREURS'!B$74:B$194,'FEUILLE D''INSCRIPTION'!S81)","v":0},{"$f":"INDEX('LISTE DES TIREURS'!C$74:C$194,'FEUILLE D''INSCRIPTION'!S81)","v":0},{"$f":"INDEX('FEUILLE D''INSCRIPTION'!U$7:U$15,'FEUILLE D''INSCRIPTION'!T81)","v":0},{"$f":"INDEX('LISTE DES TIREURS'!G$8:G$82,'FEUILLE D''INSCRIPTION'!V81)","v":0},{"$f":"INDEX('LISTE DES TIREURS'!F$8:F$82,'FEUILLE D''INSCRIPTION'!V81)","v":0},"","","",{"$f":"INDEX('LISTE DES TIREURS'!D$74:D$194,'FEUILLE D''INSCRIPTION'!S81)","v":0},null,null,null,{"$f":"IF(S81=1,\"\",COUNTIFS($S$7:$S$181,S81))","v":""},1,1,null,13]
[null,null,null,null,null,{"$f":"INDEX('LISTE DES TIREURS'!B$74:B$194,'FEUILLE D''INSCRIPTION'!S82)","v":0},{"$f":"INDEX('LISTE DES TIREURS'!C$74:C$194,'FEUILLE D''INSCRIPTION'!S82)","v":0},{"$f":"INDEX('FEUILLE D''INSCRIPTION'!U$7:U$15,'FEUILLE D''INSCRIPTION'!T82)","v":0},{"$f":"INDEX('LISTE DES TIREURS'!G$8:G$82,'FEUILLE D''INSCRIPTION'!V82)","v":0},{"$f":"INDEX('LISTE DES TIREURS'!F$8:F$82,'FEUILLE D''INSCRIPTION'!V82)","v":0},"","","",{"$f":"INDEX('LISTE DES TIREURS'!D$74:D$194,'FEUILLE D''INSCRIPTION'!S82)","v":0},null,null,null,{"$f":"IF(S82=1,\"\",COUNTIFS($S$7:$S$181,S82))","v":""},1,1,null,13]
[null,null,null,null,null,{"$f":"INDEX('LISTE DES TIREURS'!B$74:B$194,'FEUILLE D''INSCRIPTION'!S83)","v":0},{"$f":"INDEX('LISTE DES TIREURS'!C$74:C$194,'FEUILLE D''INSCRIPTION'!S83)","v":0},{"$f":"INDEX('FEUILLE D''INSCRIPTION'!U$7:U$15,'FEUILLE D''INSCRIPTION'!T83)","v":0},{"$f":"INDEX('LISTE DES TIREURS'!G$8:G$82,'FEUILLE D''INSCRIPTION'!V83)","v":0},{"$f":"INDEX('LISTE DES TIREURS'!F$8:F$82,'FEUILLE D''INSCRIPTION'!V83)","v":0},"","","",{"$f":"INDEX('LISTE DES TIREURS'!D$74:D$194,'FEUILLE D''INSCRIPTION'!S83)","v":0},null,null,null,"",1,1,null,13]
[]
[null,null,null,null,null,{"$f":"INDEX('LISTE DES TIREURS'!B$74:B$194,'FEUILLE D''INSCRIPTION'!S85)","v":0},{"$f":"INDEX('LISTE DES TIREURS'!C$74:C$194,'FEUILLE D''INSCRIPTION'!S85)","v":0},{"$f":"INDEX('FEUILLE D''INSCRIPTION'!U$7:U$15,'FEUILLE D''INSCRIPTION'!T85)","v":0},{"$f":"INDEX('LISTE DES TIREURS'!G$8:G$82,'FEUILLE D''INSCRIPTION'!V85)","v":0},{"$f":"INDEX('LISTE DES TIREURS'!F$8:F$82,'FEUILLE D''INSCRIPTION'!V85)","v":0},"","","",{"$f":"INDEX('LISTE DES TIREURS'!D$74:D$194,'FEUILLE D''INSCRIPTION'!S85)","v":0},null,null,null,{"$f":"IF(S85=1,\"\",COUNTIFS($S$7:$S$181,S85))","v":""},1,1,null,1]
[null,null,null,null,null,{"$f":"INDEX('LISTE DES TIREURS'!B$74:B$194,'FEUILLE D''INSCRIPTION'!S86)","v":0},{"$f":"INDEX('LISTE DES TIREURS'!C$74:C$194,'FEUILLE D''INSCRIPTION'!S86)","v":0},{"$f":"INDEX('FEUILLE D''INSCRIPTION'!U$7:U$15,'FEUILLE D''INSCRIPTION'!T86)","v":0},{"$f":"INDEX('LISTE DES TIREURS'!G$8:G$82,'FEUILLE D''INSCRIPTION'!V86)","v":0},{"$f":"INDEX('LISTE DES TIREURS'!F$8:F$82,'FEUILLE D''INSCRIPTION'!V86)","v":0},"","","",{"$f":"INDEX('LISTE DES TIREURS'!D$74:D$194,'FEUILLE D''INSCRIPTION'!S86)","v":0},null,null,null,"",1,1,null,1]
[null,null,null,null,null,{"$f":"INDEX('LISTE DES TIREURS'!B$74:B$194,'FEUILLE D''INSCRIPTION'!S87)","v":0},{"$f":"INDEX('LISTE DES TIREURS'!C$74:C$194,'FEUILLE D''INSCRIPTION'!S87)","v":0},{"$f":"INDEX('FEUILLE D''INSCRIPTION'!U$7:U$15,'FEUILLE D''INSCRIPTION'!T87)","v":0},{"$f":"INDEX('LISTE DES TIREURS'!G$8:G$82,'FEUILLE D''INSCRIPTION'!V87)","v":0},{"$f":"INDEX('LISTE DES TIREURS'!F$8:F$82,'FEUILLE D''INSCRIPTION'!V87)","v":0},"","","",{"$f":"INDEX('LISTE DES TIREURS'!D$74:D$194,'FEUILLE D''INSCRIPTION'!S87)","v":0},null,null,null,{"$f":"IF(S87=1,\"\",COUNTIFS($S$7:$S$181,S87))","v":""},1,1,null,1]
[null,null,null,null,null,{"$f":"INDEX('LISTE DES TIREURS'!B$74:B$194,'FEUILLE D''INSCRIPTION'!S88)","v":0},{"$f":"INDEX('LISTE DES TIREURS'!C$74:C$194,'FEUILLE D''INSCRIPTION'!S88)","v":0},{"$f":"INDEX('FEUILLE D''INSCRIPTION'!U$7:U$15,'FEUILLE D''INSCRIPTION'!T88)","v":0},{"$f":"INDEX('LISTE DES TIREURS'!G$8:G$82,'FEUILLE D''INSCRIPTION'!V88)","v":0},{"$f":"INDEX('LISTE DES TIREURS'!F$8:F$82,'FEUILLE D''INSCRIPTION'!V88)","v":0},"","","",{"$f":"INDEX('LISTE DES TIREURS'!D$74:D$194,'FEUILLE D''INSCRIPTION'!S88)","v":0},null,null,null,{"$f":"IF(S88=1,\"\",COUNTIFS($S$7:$S$181,S88))","v":""},1,1,null,1]
[null,null,null,null,null,{"$f":"INDEX('LISTE DES TIREURS'!B$74:B$194,'FEUILLE D''INSCRIPTION'!S89)","v":0},{"$f":"INDEX('LISTE DES TIREURS'!C$74:C$194,'FEUILLE D''INSCRIPTION'!S89)","v":0},{"$f":"INDEX('FEUILLE D''INSCRIPTION'!U$7:U$15,'FEUILLE D''INSCRIPTION'!T89)","v":0},{"$f":"INDEX('LISTE DES TIREURS'!G$8:G$82,'FEUILLE D''INSCRIPTION'!V89)","v":0},{"$f":"INDEX('LISTE DES TIREURS'!F$8:F$82,'FEUILLE D''INSCRIPTION'!V89)","v":0},"","","",{"$f":"INDEX('LISTE DES TIREURS'!D$74:D$194,'FEUILLE D''INSCRIPTION'!S89)","v":0},null,null,null,"",1,1,null,1]
[]
[null,null,null,null,null,{"$f":"INDEX('LISTE DES TIREURS'!B$74:B$194,'FEUILLE D''INSCRIPTION'!S91)","v":0},{"$f":"INDEX('LISTE DES TIREURS'!C$74:C$194,'FEUILLE D''INSCRIPTION'!S91)","v":0},{"$f":"INDEX('FEUILLE D''INSCRIPTION'!U$7:U$15,'FEUILLE D''INSCRIPTION'!T91)","v":0},{"$f":"INDEX('LISTE DES TIREURS'!G$8:G$82,'FEUILLE D''INSCRIPTION'!V91)","v":0},{"$f":"INDEX('LISTE DES TIREURS'!F$8:F$82,'FEUILLE D''INSCRIPTION'!V91)","v":0},{"$f":"IF(F91>0,$I$3,\"\")","v":""},{"$f":"IF(F91>0,$F$2,\"\")","v":""},{"$f":"IF(F91>0,$G$3,\"\")","v":""},{"$f":"INDEX('LISTE DES TIREURS'!D$74:D$194,'FEUILLE D''INSCRIPTION'!S91)","v":0},null,null,null,{"$f":"IF(S91=1,\"\",COUNTIFS($S$7:$S$181,S91))","v":""},1,1,null,10]
[null,null,null,null,null,{"$f":"INDEX('LISTE DES TIREURS'!B$74:B$194,'FEUILLE D''INSCRIPTION'!S92)","v":0},{"$f":"INDEX('LISTE DES TIREURS'!C$74:C$194,'FEUILLE D''INSCRIPTION'!S92)","v":0},{"$f":"INDEX('FEUILLE D''INSCRIPTION'!U$7:U$15,'FEUILLE D''INSCRIPTION'!T92)","v":0},{"$f":"INDEX('LISTE DES TIREURS'!G$8:G$82,'FEUILLE D''INSCRIPTION'!V92)","v":0},{"$f":"INDEX('LISTE DES TIREURS'!F$8:F$82,'FEUILLE D''INSCRIPTION'!V92)","v":0},"","","",{"$f":"INDEX('LISTE DES TIREURS'!D$74:D$194,'FEUILLE D''INSCRIPTION'!S92)","v":0},null,null,null,"",1,1,null,10]
[null,null,null,null,null,{"$f":"INDEX('LISTE DES TIREURS'!B$74:B$194,'FEUILLE D''INSCRIPTION'!S93)","v":0},{"$f":"INDEX('LISTE DES TIREURS'!C$74:C$194,'FEUILLE D''INSCRIPTION'!S93)","v":0},{"$f":"INDEX('FEUILLE D''INSCRIPTION'!U$7:U$15,'FEUILLE D''INSCRIPTION'!T93)","v":0},{"$f":"INDEX('LISTE DES TIREURS'!G$8:G$82,'FEUILLE D''INSCRIPTION'!V93)","v":0},{"$f":"INDEX('LISTE DES TIREURS'!F$8:F$82,'FEUILLE D''INSCRIPTION'!V93)","v":0},"","","",{"$f":"INDEX('LISTE DES TIREURS'!D$74:D$194,'FEUILLE D''INSCRIPTION'!S93)","v":0},null,null,null,{"$f":"IF(S93=1,\"\",COUNTIFS($S$7:$S$181,S93))","v":""},1,1,null,10]
[null,null,null,null,null,{"$f":"INDEX('LISTE DES TIREURS'!B$74:B$194,'FEUILLE D''INSCRIPTION'!S94)","v":0},{"$f":"INDEX('LISTE DES TIREURS'!C$74:C$194,'FEUILLE D''INSCRIPTION'!S94)","v":0},{"$f":"INDEX('FEUILLE D''INSCRIPTION'!U$7:U$15,'FEUILLE D''INSCRIPTION'!T94)","v":0},{"$f":"INDEX('LISTE DES TIREURS'!G$8:G$82,'FEUILLE D''INSCRIPTION'!V94)","v":0},{"$f":"INDEX('LISTE DES TIREURS'!F$8:F$82,'FEUILLE D''INSCRIPTION'!V94)","v":0},"","","",{"$f":"INDEX('LISTE DES TIREURS'!D$74:D$194,'FEUILLE D''INSCRIPTION'!S94)","v":0},null,null,null,{"$f":"IF(S94=1,\"\",COUNTIFS($S$7:$S$181,S94))","v":""},1,1,null,10]
[null,null,null,null,null,{"$f":"INDEX('LISTE DES TIREURS'!B$74:B$194,'FEUILLE D''INSCRIPTION'!S95)","v":0},{"$f":"INDEX('LISTE DES TIREURS'!C$74:C$194,'FEUILLE D''INSCRIPTION'!S95)","v":0},{"$f":"INDEX('FEUILLE D''INSCRIPTION'!U$7:U$15,'FEUILLE D''INSCRIPTION'!T95)","v":0},{"$f":"INDEX('LISTE DES TIREURS'!G$8:G$82,'FEUILLE D''INSCRIPTION'!V95)","v":0},{"$f":"INDEX('LISTE DES TIREURS'!F$8:F$82,'FEUILLE D''INSCRIPTION'!V95)","v":0},"","","",{"$f":"INDEX('LISTE DES TIREURS'!D$74:D$194,'FEUILLE D''INSCRIPTION'!S95)","v":0},null,null,null,"",1,1,null,10]
[]
[null,null,null,null,null,{"$f":"INDEX('LISTE DES TIREURS'!B$74:B$194,'FEUILLE D''INSCRIPTION'!S97)","v":0},{"$f":"INDEX('LISTE DES TIREURS'!C$74:C$194,'FEUILLE D''INSCRIPTION'!S97)","v":0},{"$f":"INDEX('FEUILLE D''INSCRIPTION'!U$7:U$15,'FEUILLE D''INSCRIPTION'!T97)","v":0},{"$f":"INDEX('LISTE DES TIREURS'!G$8:G$82,'FEUILLE D''INSCRIPTION'!V97)","v":0},{"$f":"INDEX('LISTE DES TIREURS'!F$8:F$82,'FEUILLE D''INSCRIPTION'!V97)","v":0},{"$f":"IF(F97>0,$I$3,\"\")","v":""},{"$f":"IF(F97>0,$F$2,\"\")","v":""},{"$f":"IF(F97>0,$G$3,\"\")","v":""},{"$f":"INDEX('LISTE DES TIREURS'!D$74:D$194,'FEUILLE D''INSCRIPTION'!S97)","v":0},null,null,null,{"$f":"IF(S97=1,\"\",COUNTIFS($S$7:$S$181,S97))","v":""},1,1,null,1]
[null,null,null,null,null,{"$f":"INDEX('LISTE DES TIREURS'!B$74:B$194,'FEUILLE D''INSCRIPTION'!S98)","v":0},{"$f":"INDEX('LISTE DES TIREURS'!C$74:C$194,'FEUILLE D''INSCRIPTION'!S98)","v":0},{"$f":"INDEX('FEUILLE D''INSCRIPTION'!U$7:U$15,'FEUILLE D''INSCRIPTION'!T98)","v":0},{"$f":"INDEX('LISTE DES TIREURS'!G$8:G$82,'FEUILLE D''INSCRIPTION'!V98)","v":0},{"$f":"INDEX('LISTE DES TIREURS'!F$8:F$82,'FEUILLE D''INSCRIPTION'!V98)","v":0},"","","",{"$f":"INDEX('LISTE DES TIREURS'!D$74:D$194,'FEUILLE D''INSCRIPTION'!S98)","v":0},null,null,null,"",1,1,null,1]
[null,null,null,null,null,{"$f":"INDEX('LISTE DES TIREURS'!B$74:B$194,'FEUILLE D''INSCRIPTION'!S99)","v":0},{"$f":"INDEX('LISTE DES TIREURS'!C$74:C$194,'FEUILLE D''INSCRIPTION'!S99)","v":0},{"$f":"INDEX('FEUILLE D''INSCRIPTION'!U$7:U$15,'FEUILLE D''INSCRIPTION'!T99)","v":0},{"$f":"INDEX('LISTE DES TIREURS'!G$8:G$82,'FEUILLE D''INSCRIPTION'!V99)","v":0},{"$f":"INDEX('LISTE DES TIREURS'!F$8:F$82,'FEUILLE D''INSCRIPTION'!V99)","v":0},"","","",{"$f":"INDEX('LISTE DES TIREURS'!D$74:D$194,'FEUILLE D''INSCRIPTION'!S99)","v":0},null,null,null,{"$f":"IF(S99=1,\"\",COUNTIFS($S$7:$S$181,S99))","v":""},1,1,null,1]
[null,null,null,null,null,{"$f":"INDEX('LISTE DES TIREURS'!B$74:B$194,'FEUILLE D''INSCRIPTION'!S100)","v":0},{"$f":"INDEX('LISTE DES TIREURS'!C$74:C$194,'FEUILLE D''INSCRIPTION'!S100)","v":0},{"$f":"INDEX('FEUILLE D''INSCRIPTION'!U$7:U$15,'FEUILLE D''INSCRIPTION'!T100)","v":0},{"$f":"INDEX('LISTE DES TIREURS'!G$8:G$82,'FEUILLE D''INSCRIPTION'!V100)","v":0},{"$f":"INDEX('LISTE DES TIREURS'!F$8:F$82,'FEUILLE D''INSCRIPTION'!V100)","v":0},"","","",{"$f":"INDEX('LISTE DES TIREURS'!D$74:D$194,'FEUILLE D''INSCRIPTION'!S100)","v":0},null,null,null,{"$f":"IF(S100=1,\"\",COUNTIFS($S$7:$S$181,S100))","v":""},1,1,null,1]
[null,null,null,null,null,{"$f":"INDEX('LISTE DES TIREURS'!B$74:B$194,'FEUILLE D''INSCRIPTION'!S101)","v":0},{"$f":"INDEX('LISTE DES TIREURS'!C$74:C$194,'FEUILLE D''INSCRIPTION'!S101)","v":0},{"$f":"INDEX('FEUILLE D''INSCRIPTION'!U$7:U$15,'FEUILLE D''INSCRIPTION'!T101)","v":0},{"$f":"INDEX('LISTE DES TIREURS'!G$8:G$82,'FEUILLE D''INSCRIPTION'!V101)","v":0},{"$f":"INDEX('LISTE DES TIREURS'!F$8:F$82,'FEUILLE D''INSCRIPTION'!V101)","v":0},"","","",{"$f":"INDEX('LISTE DES TIREURS'!D$74:D$194,'FEUILLE D''INSCRIPTION'!S101)","v":0},null,null,null,"",1,1,null,1]
[]
[null,null,null,null,null,{"$f":"INDEX('LISTE DES TIREURS'!B$74:B$194,'FEUILLE D''INSCRIPTION'!S103)","v":0},{"$f":"INDEX('LISTE DES TIREURS'!C$74:C$194,'FEUILLE D''INSCRIPTION'!S103)","v":0},{"$f":"INDEX('FEUILLE D''INSCRIPTION'!U$7:U$15,'FEUILLE D''INSCRIPTION'!T103)","v":0},{"$f":"INDEX('LISTE DES TIREURS'!G$8:G$82,'FEUILLE D''INSCRIPTION'!V103)","v":0},{"$f":"INDEX('LISTE DES TIREURS'!F$8:F$82,'FEUILLE D''INSCRIPTION'!V103)","v":0},{"$f":"IF(F103>0,$I$3,\"\")","v":""},{"$f":"IF(F103>0,$F$2,\"\")","v":""},{"$f":"IF(F103>0,$G$3,\"\")","v":""},{"$f":"INDEX('LISTE DES TIREURS'!D$74:D$194,'FEUILLE D''INSCRIPTION'!S103)","v":0},null,null,null,{"$f":"IF(S103=1,\"\",COUNTIFS($S$7:$S$181,S103))","v":""},1,1,null,1]
[null,null,null,null,null,{"$f":"INDEX('LISTE DES TIREURS'!B$74:B$194,'FEUILLE D''INSCRIPTION'!S104)","v":0},{"$f":"INDEX('LISTE DES TIREURS'!C$74:C$194,'FEUILLE D''INSCRIPTION'!S104)","v":0},{"$f":"INDEX('FEUILLE D''INSCRIPTION'!U$7:U$15,'FEUILLE D''INSCRIPTION'!T104)","v":0},{"$f":"INDEX('LISTE DES TIREURS'!G$8:G$82,'FEUILLE D''INSCRIPTION'!V104)","v":0},{"$f":"INDEX('LISTE DES TIREURS'!F$8:F$82,'FEUILLE D''INSCRIPTION'!V104)","v":0},"","","",{"$f":"INDEX('LISTE DES TIREURS'!D$74:D$194,'FEUILLE D''INSCRIPTION'!S104)","v":0},null,null,null,"",1,1,null,1]
[null,null,null,null,null,{"$f":"INDEX('LISTE DES TIREURS'!B$74:B$194,'FEUILLE D''INSCRIPTION'!S105)","v":0},{"$f":"INDEX('LISTE DES TIREURS'!C$74:C$194,'FEUILLE D''INSCRIPTION'!S105)","v":0},{"$f":"INDEX('FEUILLE D''INSCRIPTION'!U$7:U$15,'FEUILLE D''INSCRIPTION'!T105)","v":0},{"$f":"INDEX('LISTE DES TIREURS'!G$8:G$82,'FEUILLE D''INSCRIPTION'!V105)","v":0},{"$f":"INDEX('LISTE DES TIREURS'!F$8:F$82,'FEUILLE D''INSCRIPTION'!V105)","v":0},"","","",{"$f":"INDEX('LISTE DES TIREURS'!D$74:D$194,'FEUILLE D''INSCRIPTION'!S105)","v":0},null,null,null,{"$f":"IF(S105=1,\"\",COUNTIFS($S$7:$S$181,S105))","v":""},1,1,null,1]
[null,null,null,null,null,{"$f":"INDEX('LISTE DES TIREURS'!B$74:B$194,'FEUILLE D''INSCRIPTION'!S106)","v":0},{"$f":"INDEX('LISTE DES TIREURS'!C$74:C$194,'FEUILLE D''INSCRIPTION'!S106)","v":0},{"$f":"INDEX('FEUILLE D''INSCRIPTION'!U$7:U$15,'FEUILLE D''INSCRIPTION'!T106)","v":0},{"$f":"INDEX('LISTE DES TIREURS'!G$8:G$82,'FEUILLE D''INSCRIPTION'!V106)","v":0},{"$f":"INDEX('LISTE DES TIREURS'!F$8:F$82,'FEUILLE D''INSCRIPTION'!V106)","v":0},"","","",{"$f":"INDEX('LISTE DES TIREURS'!D$74:D$194,'FEUILLE D''INSCRIPTION'!S106)","v":0},null,null,null,{"$f":"IF(S106=1,\"\",COUNTIFS($S$7:$S$181,S106))","v":""},1,1,null,1]
[null,null,null,null,null,{"$f":"INDEX('LISTE DES TIREURS'!B$74:B$194,'FEUILLE D''INSCRIPTION'!S107)","v":0},{"$f":"INDEX('LISTE DES TIREURS'!C$74:C$194,'FEUILLE D''INSCRIPTION'!S107)","v":0},{"$f":"INDEX('FEUILLE D''INSCRIPTION'!U$7:U$15,'FEUILLE D''INSCRIPTION'!T107)","v":0},{"$f":"INDEX('LISTE DES TIREURS'!G$8:G$82,'FEUILLE D''INSCRIPTION'!V107)","v":0},{"$f":"INDEX('LISTE DES TIREURS'!F$8:F$82,'FEUILLE D''INSCRIPTION'!V107)","v":0},"","","",{"$f":"INDEX('LISTE DES TIREURS'!D$74:D$194,'FEUILLE D''INSCRIPTION'!S107)","v":0},null,null,null,"",1,1,null,1]
[]
[null,null,null,null,null,{"$f":"INDEX('LISTE DES TIREURS'!B$74:B$194,'FEUILLE D''INSCRIPTION'!S109)","v":0},{"$f":"INDEX('LISTE DES TIREURS'!C$74:C$194,'FEUILLE D''INSCRIPTION'!S109)","v":0},{"$f":"INDEX('FEUILLE D''INSCRIPTION'!U$7:U$15,'FEUILLE D''INSCRIPTION'!T109)","v":0},{"$f":"INDEX('LISTE DES TIREURS'!G$8:G$82,'FEUILLE D''INSCRIPTION'!V109)","v":0},{"$f":"INDEX('LISTE DES TIREURS'!F$8:F$82,'FEUILLE D''INSCRIPTION'!V109)","v":0},{"$f":"IF(F109>0,$I$3,\"\")","v":""},{"$f":"IF(F109>0,$F$2,\"\")","v":""},{"$f":"IF(F109>0,$G$3,\"\")","v":""},{"$f":"INDEX('LISTE DES TIREURS'!D$74:D$194,'FEUILLE D''INSCRIPTION'!S109)","v":0},null,null,null,{"$f":"IF(S109=1,\"\",COUNTIFS($S$7:$S$181,S109))","v":""},1,1,null,1]
[null,null,null,null,null,{"$f":"INDEX('LISTE DES TIREURS'!B$74:B$194,'FEUILLE D''INSCRIPTION'!S110)","v":0},{"$f":"INDEX('LISTE DES TIREURS'!C$74:C$194,'FEUILLE D''INSCRIPTION'!S110)","v":0},{"$f":"INDEX('FEUILLE D''INSCRIPTION'!U$7:U$15,'FEUILLE D''INSCRIPTION'!T110)","v":0},{"$f":"INDEX('LISTE DES TIREURS'!G$8:G$82,'FEUILLE D''INSCRIPTION'!V110)","v":0},{"$f":"INDEX('LISTE DES TIREURS'!F$8:F$82,'FEUILLE D''INSCRIPTION'!V110)","v":0},"","","",{"$f":"INDEX('LISTE DES TIREURS'!D$74:D$181,'FEUILLE D''INSCRIPTION'!S110)","v":0},null,null,null,"",1,1,null,1]
[null,null,null,null,null,{"$f":"INDEX('LISTE DES TIREURS'!B$74:B$194,'FEUILLE D''INSCRIPTION'!S111)","v":0},{"$f":"INDEX('LISTE DES TIREURS'!C$74:C$194,'FEUILLE D''INSCRIPTION'!S111)","v":0},{"$f":"INDEX('FEUILLE D''INSCRIPTION'!U$7:U$15,'FEUILLE D''INSCRIPTION'!T111)","v":0},{"$f":"INDEX('LISTE DES TIREURS'!G$8:G$82,'FEUILLE D''INSCRIPTION'!V111)","v":0},{"$f":"INDEX('LISTE DES TIREURS'!F$8:F$82,'FEUILLE D''INSCRIPTION'!V111)","v":0},"","","",{"$f":"INDEX('LISTE DES TIREURS'!D$74:D$181,'FEUILLE D''INSCRIPTION'!S111)","v":0},null,null,null,{"$f":"IF(S111=1,\"\",COUNTIFS($S$7:$S$181,S111))","v":""},1,1,null,1]
[null,null,null,null,null,{"$f":"INDEX('LISTE DES TIREURS'!B$74:B$194,'FEUILLE D''INSCRIPTION'!S112)","v":0},{"$f":"INDEX('LISTE DES TIREURS'!C$74:C$194,'FEUILLE D''INSCRIPTION'!S112)","v":0},{"$f":"INDEX('FEUILLE D''INSCRIPTION'!U$7:U$15,'FEUILLE D''INSCRIPTION'!T112)","v":0},{"$f":"INDEX('LISTE DES TIREURS'!G$8:G$82,'FEUILLE D''INSCRIPTION'!V112)","v":0},{"$f":"INDEX('LISTE DES TIREURS'!F$8:F$82,'FEUILLE D''INSCRIPTION'!V112)","v":0},"","","",{"$f":"INDEX('LISTE DES TIREURS'!D$74:D$181,'FEUILLE D''INSCRIPTION'!S112)","v":0},null,null,null,{"$f":"IF(S112=1,\"\",COUNTIFS($S$7:$S$181,S112))","v":""},1,1,null,1]
[null,null,null,null,null,{"$f":"INDEX('LISTE DES TIREURS'!B$74:B$194,'FEUILLE D''INSCRIPTION'!S113)","v":0},{"$f":"INDEX('LISTE DES TIREURS'!C$74:C$194,'FEUILLE D''INSCRIPTION'!S113)","v":0},{"$f":"INDEX('FEUILLE D''INSCRIPTION'!U$7:U$15,'FEUILLE D''INSCRIPTION'!T113)","v":0},{"$f":"INDEX('LISTE DES TIREURS'!G$8:G$82,'FEUILLE D''INSCRIPTION'!V113)","v":0},{"$f":"INDEX('LISTE DES TIREURS'!F$8:F$82,'FEUILLE D''INSCRIPTION'!V113)","v":0},"","","",{"$f":"INDEX('LISTE DES TIREURS'!D$74:D$181,'FEUILLE D''INSCRIPTION'!S113)","v":0},null,null,null,"",1,1,null,1]
[]
[null,null,null,null,null,{"$f":"INDEX('LISTE DES TIREURS'!B$74:B$194,'FEUILLE D''INSCRIPTION'!S115)","v":0},{"$f":"INDEX('LISTE DES TIREURS'!C$74:C$194,'FEUILLE D''INSCRIPTION'!S115)","v":0},{"$f":"INDEX('FEUILLE D''INSCRIPTION'!U$7:U$15,'FEUILLE D''INSCRIPTION'!T115)","v":0},{"$f":"INDEX('LISTE DES TIREURS'!G$8:G$82,'FEUILLE D''INSCRIPTION'!V115)","v":0},{"$f":"INDEX('LISTE DES TIREURS'!F$8:F$82,'FEUILLE D''INSCRIPTION'!V115)","v":0},{"$f":"IF(F115>0,$I$3,\"\")","v":""},{"$f":"IF(F115>0,$F$2,\"\")","v":""},{"$f":"IF(F115>0,$G$3,\"\")","v":""},{"$f":"INDEX('LISTE DES TIREURS'!D$74:D$181,'FEUILLE D''INSCRIPTION'!S115)","v":0},null,null,null,{"$f":"IF(S115=1,\"\",COUNTIFS($S$7:$S$181,S115))","v":""},1,1,null,1]
[null,null,null,null,null,{"$f":"INDEX('LISTE DES TIREURS'!B$74:B$194,'FEUILLE D''INSCRIPTION'!S116)","v":0},{"$f":"INDEX('LISTE DES TIREURS'!C$74:C$194,'FEUILLE D''INSCRIPTION'!S116)","v":0},{"$f":"INDEX('FEUILLE D''INSCRIPTION'!U$7:U$15,'FEUILLE D''INSCRIPTION'!T116)","v":0},{"$f":"INDEX('LISTE DES TIREURS'!G$8:G$82,'FEUILLE D''INSCRIPTION'!V116)","v":0},{"$f":"INDEX('LISTE DES TIREURS'!F$8:F$82,'FEUILLE D''INSCRIPTION'!V116)","v":0},"","","",{"$f":"INDEX('LISTE DES TIREURS'!D$74:D$181,'FEUILLE D''INSCRIPTION'!S116)","v":0},null,null,null,"",1,1,null,1]
[null,null,null,null,null,{"$f":"INDEX('LISTE DES TIREURS'!B$74:B$194,'FEUILLE D''INSCRIPTION'!S117)","v":0},{"$f":"INDEX('LISTE DES TIREURS'!C$74:C$194,'FEUILLE D''INSCRIPTION'!S117)","v":0},{"$f":"INDEX('FEUILLE D''INSCRIPTION'!U$7:U$15,'FEUILLE D''INSCRIPTION'!T117)","v":0},{"$f":"INDEX('LISTE DES TIREURS'!G$8:G$82,'FEUILLE D''INSCRIPTION'!V117)","v":0},{"$f":"INDEX('LISTE DES TIREURS'!F$8:F$82,'FEUILLE D''INSCRIPTION'!V117)","v":0},"","","",{"$f":"INDEX('LISTE DES TIREURS'!D$74:D$181,'FEUILLE D''INSCRIPTION'!S117)","v":0},null,null,null,{"$f":"IF(S117=1,\"\",COUNTIFS($S$7:$S$181,S117))","v":""},1,1,null,1]
[null,null,null,null,null,{"$f":"INDEX('LISTE DES TIREURS'!B$74:B$194,'FEUILLE D''INSCRIPTION'!S118)","v":0},{"$f":"INDEX('LISTE DES TIREURS'!C$74:C$194,'FEUILLE D''INSCRIPTION'!S118)","v":0},{"$f":"INDEX('FEUILLE D''INSCRIPTION'!U$7:U$15,'FEUILLE D''INSCRIPTION'!T118)","v":0},{"$f":"INDEX('LISTE DES TIREURS'!G$8:G$82,'FEUILLE D''INSCRIPTION'!V118)","v":0},{"$f":"INDEX('LISTE DES TIREURS'!F$8:F$82,'FEUILLE D''INSCRIPTION'!V118)","v":0},"","","",{"$f":"INDEX('LISTE DES TIREURS'!D$74:D$181,'FEUILLE D''INSCRIPTION'!S118)","v":0},null,null,null,{"$f":"IF(S118=1,\"\",COUNTIFS($S$7:$S$181,S118))","v":""},1,1,null,1]
[null,null,null,null,null,{"$f":"INDEX('LISTE DES TIREURS'!B$74:B$194,'FEUILLE D''INSCRIPTION'!S119)","v":0},{"$f":"INDEX('LISTE DES TIREURS'!C$74:C$194,'FEUILLE D''INSCRIPTION'!S119)","v":0},{"$f":"INDEX('FEUILLE D''INSCRIPTION'!U$7:U$15,'FEUILLE D''INSCRIPTION'!T119)","v":0},{"$f":"INDEX('LISTE DES TIREURS'!G$8:G$82,'FEUILLE D''INSCRIPTION'!V119)","v":0},{"$f":"INDEX('LISTE DES TIREURS'!F$8:F$82,'FEUILLE D''INSCRIPTION'!V119)","v":0},"","","",{"$f":"INDEX('LISTE DES TIREURS'!D$74:D$181,'FEUILLE D''INSCRIPTION'!S119)","v":0},null,null,null,"",1,1,null,1]
[]
[null,null,null,null,null,{"$f":"INDEX('LISTE DES TIREURS'!B$74:B$194,'FEUILLE D''INSCRIPTION'!S121)","v":0},{"$f":"INDEX('LISTE DES TIREURS'!C$74:C$194,'FEUILLE D''INSCRIPTION'!S121)","v":0},{"$f":"INDEX('FEUILLE D''INSCRIPTION'!U$7:U$15,'FEUILLE D''INSCRIPTION'!T121)","v":0},{"$f":"INDEX('LISTE DES TIREURS'!G$8:G$82,'FEUILLE D''INSCRIPTION'!V121)","v":0},{"$f":"INDEX('LISTE DES TIREURS'!F$8:F$82,'FEUILLE D''INSCRIPTION'!V121)","v":0},{"$f":"IF(F121>0,$I$3,\"\")","v":""},{"$f":"IF(F121>0,$F$2,\"\")","v":""},{"$f":"IF(F121>0,$G$3,\"\")","v":""},{"$f":"INDEX('LISTE DES TIREURS'!D$74:D$181,'FEUILLE D''INSCRIPTION'!S121)","v":0},null,null,null,{"$f":"IF(S121=1,\"\",COUNTIFS($S$7:$S$181,S121))","v":""},1,1,null,1]
[null,null,null,null,null,{"$f":"INDEX('LISTE DES TIREURS'!B$74:B$194,'FEUILLE D''INSCRIPTION'!S122)","v":0},{"$f":"INDEX('LISTE DES TIREURS'!C$74:C$194,'FEUILLE D''INSCRIPTION'!S122)","v":0},{"$f":"INDEX('FEUILLE D''INSCRIPTION'!U$7:U$15,'FEUILLE D''INSCRIPTION'!T122)","v":0},{"$f":"INDEX('LISTE DES TIREURS'!G$8:G$82,'FEUILLE D''INSCRIPTION'!V122)","v":0},{"$f":"INDEX('LISTE DES TIREURS'!F$8:F$82,'FEUILLE D''INSCRIPTION'!V122)","v":0},"","","",{"$f":"INDEX('LISTE DES TIREURS'!D$74:D$181,'FEUILLE D''INSCRIPTION'!S122)","v":0},null,null,null,"",1,1,null,1]
[null,null,null,null,null,{"$f":"INDEX('LISTE DES TIREURS'!B$74:B$194,'FEUILLE D''INSCRIPTION'!S123)","v":0},{"$f":"INDEX('LISTE DES TIREURS'!C$74:C$194,'FEUILLE D''INSCRIPTION'!S123)","v":0},{"$f":"INDEX('FEUILLE D''INSCRIPTION'!U$7:U$15,'FEUILLE D''INSCRIPTION'!T123)","v":0},{"$f":"INDEX('LISTE DES TIREURS'!G$8:G$82,'FEUILLE D''INSCRIPTION'!V123)","v":0},{"$f":"INDEX('LISTE DES TIREURS'!F$8:F$82,'FEUILLE D''INSCRIPTION'!V123)","v":0},"","","",{"$f":"INDEX('LISTE DES TIREURS'!D$74:D$181,'FEUILLE D''INSCRIPTION'!S123)","v":0},null,null,null,{"$f":"IF(S123=1,\"\",COUNTIFS($S$7:$S$181,S123))","v":""},1,1,null,1]
[null,null,null,null,null,{"$f":"INDEX('LISTE DES TIREURS'!B$74:B$194,'FEUILLE D''INSCRIPTION'!S124)","v":0},{"$f":"INDEX('LISTE DES TIREURS'!C$74:C$194,'FEUILLE D''INSCRIPTION'!S124)","v":0},{"$f":"INDEX('FEUILLE D''INSCRIPTION'!U$7:U$15,'FEUILLE D''INSCRIPTION'!T124)","v":0},{"$f":"INDEX('LISTE DES TIREURS'!G$8:G$82,'FEUILLE D''INSCRIPTION'!V124)","v":0},{"$f":"INDEX('LISTE DES TIREURS'!F$8:F$82,'FEUILLE D''INSCRIPTION'!V124)","v":0},"","","",{"$f":"INDEX('LISTE DES TIREURS'!D$74:D$181,'FEUILLE D''INSCRIPTION'!S124)","v":0},null,null,null,{"$f":"IF(S124=1,\"\",COUNTIFS($S$7:$S$181,S124))","v":""},1,1,null,1]
[null,null,null,null,null,{"$f":"INDEX('LISTE DES TIREURS'!B$74:B$194,'FEUILLE D''INSCRIPTION'!S125)","v":0},{"$f":"INDEX('LISTE DES TIREURS'!C$74:C$194,'FEUILLE D''INSCRIPTION'!S125)","v":0},{"$f":"INDEX('FEUILLE D''INSCRIPTION'!U$7:U$15,'FEUILLE D''INSCRIPTION'!T125)","v":0},{"$f":"INDEX('LISTE DES TIREURS'!G$8:G$82,'FEUILLE D''INSCRIPTION'!V125)","v":0},{"$f":"INDEX('LISTE DES TIREURS'!F$8:F$82,'FEUILLE D''INSCRIPTION'!V125)","v":0},"","","",{"$f":"INDEX('LISTE DES TIREURS'!D$74:D$181,'FEUILLE D''INSCRIPTION'!S125)","v":0},null,null,null,"",1,1,null,1]
[null,null,null,null,null,null,null,null,null,null,null,null,null,null,null,null,null,null,null,null,null,2]
[null,null,null,null,null,{"$f":"INDEX('LISTE DES TIREURS'!B$74:B$194,'FEUILLE D''INSCRIPTION'!S127)","v":0},{"$f":"INDEX('LISTE DES TIREURS'!C$74:C$194,'FEUILLE D''INSCRIPTION'!S127)","v":0},{"$f":"INDEX('FEUILLE D''INSCRIPTION'!U$7:U$15,'FEUILLE D''INSCRIPTION'!T127)","v":0},{"$f":"INDEX('LISTE DES TIREURS'!G$8:G$82,'FEUILLE D''INSCRIPTION'!V127)","v":0},{"$f":"INDEX('LISTE DES TIREURS'!F$8:F$82,'FEUILLE D''INSCRIPTION'!V127)","v":0},{"$f":"IF(F127>0,$I$3,\"\")","v":""},{"$f":"IF(F127>0,$F$2,\"\")","v":""},{"$f":"IF(F127>0,$G$3,\"\")","v":""},{"$f":"INDEX('LISTE DES TIREURS'!D$74:D$181,'FEUILLE D''INSCRIPTION'!S127)","v":0},null,null,null,{"$f":"IF(S127=1,\"\",COUNTIFS($S$7:$S$181,S127))","v":""},1,1,null,1]
[null,null,null,null,null,{"$f":"INDEX('LISTE DES TIREURS'!B$74:B$194,'FEUILLE D''INSCRIPTION'!S128)","v":0},{"$f":"INDEX('LISTE DES TIREURS'!C$74:C$194,'FEUILLE D''INSCRIPTION'!S128)","v":0},{"$f":"INDEX('FEUILLE D''INSCRIPTION'!U$7:U$15,'FEUILLE D''INSCRIPTION'!T128)","v":0},{"$f":"INDEX('LISTE DES TIREURS'!G$8:G$82,'FEUILLE D''INSCRIPTION'!V128)","v":0},{"$f":"INDEX('LISTE DES TIREURS'!F$8:F$82,'FEUILLE D''INSCRIPTION'!V128)","v":0},"","","",{"$f":"INDEX('LISTE DES TIREURS'!D$74:D$181,'FEUILLE D''INSCRIPTION'!S128)","v":0},null,null,null,"",1,1,null,1]
[null,null,null,null,null,{"$f":"INDEX('LISTE DES TIREURS'!B$74:B$194,'FEUILLE D''INSCRIPTION'!S129)","v":0},{"$f":"INDEX('LISTE DES TIREURS'!C$74:C$194,'FEUILLE D''INSCRIPTION'!S129)","v":0},{"$f":"INDEX('FEUILLE D''INSCRIPTION'!U$7:U$15,'FEUILLE D''INSCRIPTION'!T129)","v":0},{"$f":"INDEX('LISTE DES TIREURS'!G$8:G$82,'FEUILLE D''INSCRIPTION'!V129)","v":0},{"$f":"INDEX('LISTE DES TIREURS'!F$8:F$82,'FEUILLE D''INSCRIPTION'!V129)","v":0},"","","",{"$f":"INDEX('LISTE DES TIREURS'!D$74:D$181,'FEUILLE D''INSCRIPTION'!S129)","v":0},null,null,null,{"$f":"IF(S129=1,\"\",COUNTIFS($S$7:$S$181,S129))","v":""},1,1,null,1]
[null,null,null,null,null,{"$f":"INDEX('LISTE DES TIREURS'!B$74:B$194,'FEUILLE D''INSCRIPTION'!S130)","v":0},{"$f":"INDEX('LISTE DES TIREURS'!C$74:C$194,'FEUILLE D''INSCRIPTION'!S130)","v":0},{"$f":"INDEX('FEUILLE D''INSCRIPTION'!U$7:U$15,'FEUILLE D''INSCRIPTION'!T130)","v":0},{"$f":"INDEX('LISTE DES TIREURS'!G$8:G$82,'FEUILLE D''INSCRIPTION'!V130)","v":0},{"$f":"INDEX('LISTE DES TIREURS'!F$8:F$82,'FEUILLE D''INSCRIPTION'!V130)","v":0},"","","",{"$f":"INDEX('LISTE DES TIREURS'!D$74:D$181,'FEUILLE D''INSCRIPTION'!S130)","v":0},null,null,null,{"$f":"IF(S130=1,\"\",COUNTIFS($S$7:$S$181,S130))","v":""},1,1,null,1]
[null,null,null,null,null,{"$f":"INDEX('LISTE DES TIREURS'!B$74:B$194,'FEUILLE D''INSCRIPTION'!S131)","v":0},{"$f":"INDEX('LISTE DES TIREURS'!C$74:C$194,'FEUILLE D''INSCRIPTION'!S131)","v":0},{"$f":"INDEX('FEUILLE D''INSCRIPTION'!U$7:U$15,'FEUILLE D''INSCRIPTION'!T131)","v":0},{"$f":"INDEX('LISTE DES TIREURS'!G$8:G$82,'FEUILLE D''INSCRIPTION'!V131)","v":0},{"$f":"INDEX('LISTE DES TIREURS'!F$8:F$82,'FEUILLE D''INSCRIPTION'!V131)","v":0},"","","",{"$f":"INDEX('LISTE DES TIREURS'!D$74:D$181,'FEUILLE D''INSCRIPTION'!S131)","v":0},null,null,null,"",1,1,null,1]
[]
[null,null,null,null,null,{"$f":"INDEX('LISTE DES TIREURS'!B$74:B$194,'FEUILLE D''INSCRIPTION'!S133)","v":0},{"$f":"INDEX('LISTE DES TIREURS'!C$74:C$194,'FEUILLE D''INSCRIPTION'!S133)","v":0},{"$f":"INDEX('FEUILLE D''INSCRIPTION'!U$7:U$15,'FEUILLE D''INSCRIPTION'!T133)","v":0},{"$f":"INDEX('LISTE DES TIREURS'!G$8:G$82,'FEUILLE D''INSCRIPTION'!V133)","v":0},{"$f":"INDEX('LISTE DES TIREURS'!F$8:F$82,'FEUILLE D''INSCRIPTION'!V133)","v":0},{"$f":"IF(F133>0,$I$3,\"\")","v":""},{"$f":"IF(F133>0,$F$2,\"\")","v":""},{"$f":"IF(F133>0,$G$3,\"\")","v":""},{"$f":"INDEX('LISTE DES TIREURS'!D$74:D$181,'FEUILLE D''INSCRIPTION'!S133)","v":0},null,null,null,{"$f":"IF(S133=1,\"\",COUNTIFS($S$7:$S$181,S133))","v":""},1,1,null,1]
[null,null,null,null,null,{"$f":"INDEX('LISTE DES TIREURS'!B$74:B$194,'FEUILLE D''INSCRIPTION'!S134)","v":0},{"$f":"INDEX('LISTE DES TIREURS'!C$74:C$194,'FEUILLE D''INSCRIPTION'!S134)","v":0},{"$f":"INDEX('FEUILLE D''INSCRIPTION'!U$7:U$15,'FEUILLE D''INSCRIPTION'!T134)","v":0},{"$f":"INDEX('LISTE DES TIREURS'!G$8:G$82,'FEUILLE D''INSCRIPTION'!V134)","v":0},{"$f":"INDEX('LISTE DES TIREURS'!F$8:F$82,'FEUILLE D''INSCRIPTION'!V134)","v":0},"","","",{"$f":"INDEX('LISTE DES TIREURS'!D$74:D$181,'FEUILLE D''INSCRIPTION'!S134)","v":0},null,null,null,"",1,1,null,1]
[null,null,null,null,null,{"$f":"INDEX('LISTE DES TIREURS'!B$74:B$194,'FEUILLE D''INSCRIPTION'!S135)","v":0},{"$f":"INDEX('LISTE DES TIREURS'!C$74:C$194,'FEUILLE D''INSCRIPTION'!S135)","v":0},{"$f":"INDEX('FEUILLE D''INSCRIPTION'!U$7:U$15,'FEUILLE D''INSCRIPTION'!T135)","v":0},{"$f":"INDEX('LISTE DES TIREURS'!G$8:G$82,'FEUILLE D''INSCRIPTION'!V135)","v":0},{"$f":"INDEX('LISTE DES TIREURS'!F$8:F$82,'FEUILLE D''INSCRIPTION'!V135)","v":0},"","","",{"$f":"INDEX('LISTE DES TIREURS'!D$74:D$181,'FEUILLE D''INSCRIPTION'!S135)","v":0},null,null,null,{"$f":"IF(S135=1,\"\",COUNTIFS($S$7:$S$181,S135))","v":""},1,1,null,1]
[null,null,null,null,null,{"$f":"INDEX('LISTE DES TIREURS'!B$74:B$194,'FEUILLE D''INSCRIPTION'!S136)","v":0},{"$f":"INDEX('LISTE DES TIREURS'!C$74:C$194,'FEUILLE D''INSCRIPTION'!S136)","v":0},{"$f":"INDEX('FEUILLE D''INSCRIPTION'!U$7:U$15,'FEUILLE D''INSCRIPTION'!T136)","v":0},{"$f":"INDEX('LISTE DES TIREURS'!G$8:G$82,'FEUILLE D''INSCRIPTION'!V136)","v":0},{"$f":"INDEX('LISTE DES TIREURS'!F$8:F$82,'FEUILLE D''INSCRIPTION'!V136)","v":0},"","","",{"$f":"INDEX('LISTE DES TIREURS'!D$74:D$181,'FEUILLE D''INSCRIPTION'!S136)","v":0},null,null,null,{"$f":"IF(S136=1,\"\",COUNTIFS($S$7:$S$181,S136))","v":""},1,1,null,1]
[null,null,null,null,null,{"$f":"INDEX('LISTE DES TIREURS'!B$74:B$194,'FEUILLE D''INSCRIPTION'!S137)","v":0},{"$f":"INDEX('LISTE DES TIREURS'!C$74:C$194,'FEUILLE D''INSCRIPTION'!S137)","v":0},{"$f":"INDEX('FEUILLE D''INSCRIPTION'!U$7:U$15,'FEUILLE D''INSCRIPTION'!T137)","v":0},{"$f":"INDEX('LISTE DES TIREURS'!G$8:G$82,'FEUILLE D''INSCRIPTION'!V137)","v":0},{"$f":"INDEX('LISTE DES TIREURS'!F$8:F$82,'FEUILLE D''INSCRIPTION'!V137)","v":0},"","","",{"$f":"INDEX('LISTE DES TIREURS'!D$74:D$181,'FEUILLE D''INSCRIPTION'!S137)","v":0},null,null,null,"",1,1,null,1]
[null,null,null,null,null,null,null,null,null,null,null,null,null,null,null,null,null,null,null,null,null,2]
[null,null,null,null,null,{"$f":"INDEX('LISTE DES TIREURS'!B$74:B$194,'FEUILLE D''INSCRIPTION'!S139)","v":0},{"$f":"INDEX('LISTE DES TIREURS'!C$74:C$194,'FEUILLE D''INSCRIPTION'!S139)","v":0},{"$f":"INDEX('FEUILLE D''INSCRIPTION'!U$7:U$15,'FEUILLE D''INSCRIPTION'!T139)","v":0},{"$f":"INDEX('LISTE DES TIREURS'!G$8:G$82,'FEUILLE D''INSCRIPTION'!V139)","v":0},{"$f":"INDEX('LISTE DES TIREURS'!F$8:F$82,'FEUILLE D''INSCRIPTION'!V139)","v":0},{"$f":"IF(F139>0,$I$3,\"\")","v":""},{"$f":"IF(F139>0,$F$2,\"\")","v":""},{"$f":"IF(F139>0,$G$3,\"\")","v":""},{"$f":"INDEX('LISTE DES TIREURS'!D$74:D$181,'FEUILLE D''INSCRIPTION'!S139)","v":0},null,null,null,{"$f":"IF(S139=1,\"\",COUNTIFS($S$7:$S$181,S139))","v":""},1,1,null,1]
[null,null,null,null,null,{"$f":"INDEX('LISTE DES TIREURS'!B$74:B$194,'FEUILLE D''INSCRIPTION'!S140)","v":0},{"$f":"INDEX('LISTE DES TIREURS'!C$74:C$194,'FEUILLE D''INSCRIPTION'!S140)","v":0},{"$f":"INDEX('FEUILLE D''INSCRIPTION'!U$7:U$15,'FEUILLE D''INSCRIPTION'!T140)","v":0},{"$f":"INDEX('LISTE DES TIREURS'!G$8:G$82,'FEUILLE D''INSCRIPTION'!V140)","v":0},{"$f":"INDEX('LISTE DES TIREURS'!F$8:F$82,'FEUILLE D''INSCRIPTION'!V140)","v":0},"","","",{"$f":"INDEX('LISTE DES TIREURS'!D$74:D$181,'FEUILLE D''INSCRIPTION'!S140)","v":0},null,null,null,"",1,1,null,1]
[null,null,null,null,null,{"$f":"INDEX('LISTE DES TIREURS'!B$74:B$194,'FEUILLE D''INSCRIPTION'!S141)","v":0},{"$f":"INDEX('LISTE DES TIREURS'!C$74:C$194,'FEUILLE D''INSCRIPTION'!S141)","v":0},{"$f":"INDEX('FEUILLE D''INSCRIPTION'!U$7:U$15,'FEUILLE D''INSCRIPTION'!T141)","v":0},{"$f":"INDEX('LISTE DES TIREURS'!G$8:G$82,'FEUILLE D''INSCRIPTION'!V141)","v":0},{"$f":"INDEX('LISTE DES TIREURS'!F$8:F$82,'FEUILLE D''INSCRIPTION'!V141)","v":0},"","","",{"$f":"INDEX('LISTE DES TIREURS'!D$74:D$181,'FEUILLE D''INSCRIPTION'!S141)","v":0},null,null,null,{"$f":"IF(S141=1,\"\",COUNTIFS($S$7:$S$181,S141))","v":""},1,1,null,1]
[null,null,null,null,null,{"$f":"INDEX('LISTE DES TIREURS'!B$74:B$194,'FEUILLE D''INSCRIPTION'!S142)","v":0},{"$f":"INDEX('LISTE DES TIREURS'!C$74:C$194,'FEUILLE D''INSCRIPTION'!S142)","v":0},{"$f":"INDEX('FEUILLE D''INSCRIPTION'!U$7:U$15,'FEUILLE D''INSCRIPTION'!T142)","v":0},{"$f":"INDEX('LISTE DES TIREURS'!G$8:G$82,'FEUILLE D''INSCRIPTION'!V142)","v":0},{"$f":"INDEX('LISTE DES TIREURS'!F$8:F$82,'FEUILLE D''INSCRIPTION'!V142)","v":0},"","","",{"$f":"INDEX('LISTE DES TIREURS'!D$74:D$181,'FEUILLE D''INSCRIPTION'!S142)","v":0},null,null,null,{"$f":"IF(S142=1,\"\",COUNTIFS($S$7:$S$181,S142))","v":""},1,1,null,1]
[null,null,null,null,null,{"$f":"INDEX('LISTE DES TIREURS'!B$74:B$194,'FEUILLE D''INSCRIPTION'!S143)","v":0},{"$f":"INDEX('LISTE DES TIREURS'!C$74:C$194,'FEUILLE D''INSCRIPTION'!S143)","v":0},{"$f":"INDEX('FEUILLE D''INSCRIPTION'!U$7:U$15,'FEUILLE D''INSCRIPTION'!T143)","v":0},{"$f":"INDEX('LISTE DES TIREURS'!G$8:G$82,'FEUILLE D''INSCRIPTION'!V143)","v":0},{"$f":"INDEX('LISTE DES TIREURS'!F$8:F$82,'FEUILLE D''INSCRIPTION'!V143)","v":0},"","","",{"$f":"INDEX('LISTE DES TIREURS'!D$74:D$181,'FEUILLE D''INSCRIPTION'!S143)","v":0},null,null,null,"",1,1,null,1]
[]
[null,null,null,null,null,{"$f":"INDEX('LISTE DES TIREURS'!B$74:B$194,'FEUILLE D''INSCRIPTION'!S145)","v":0},{"$f":"INDEX('LISTE DES TIREURS'!C$74:C$194,'FEUILLE D''INSCRIPTION'!S145)","v":0},{"$f":"INDEX('FEUILLE D''INSCRIPTION'!U$7:U$15,'FEUILLE D''INSCRIPTION'!T145)","v":0},{"$f":"INDEX('LISTE DES TIREURS'!G$8:G$82,'FEUILLE D''INSCRIPTION'!V145)","v":0},{"$f":"INDEX('LISTE DES TIREURS'!F$8:F$82,'FEUILLE D''INSCRIPTION'!V145)","v":0},{"$f":"IF(F145>0,$I$3,\"\")","v":""},{"$f":"IF(F145>0,$F$2,\"\")","v":""},{"$f":"IF(F145>0,$G$3,\"\")","v":""},{"$f":"INDEX('LISTE DES TIREURS'!D$74:D$181,'FEUILLE D''INSCRIPTION'!S145)","v":0},null,null,null,{"$f":"IF(S145=1,\"\",COUNTIFS($S$7:$S$181,S145))","v":""},1,1,null,1]
[null,null,null,null,null,{"$f":"INDEX('LISTE DES TIREURS'!B$74:B$194,'FEUILLE D''INSCRIPTION'!S146)","v":0},{"$f":"INDEX('LISTE DES TIREURS'!C$74:C$194,'FEUILLE D''INSCRIPTION'!S146)","v":0},{"$f":"INDEX('FEUILLE D''INSCRIPTION'!U$7:U$15,'FEUILLE D''INSCRIPTION'!T146)","v":0},{"$f":"INDEX('LISTE DES TIREURS'!G$8:G$82,'FEUILLE D''INSCRIPTION'!V146)","v":0},{"$f":"INDEX('LISTE DES TIREURS'!F$8:F$82,'FEUILLE D''INSCRIPTION'!V146)","v":0},"","","",{"$f":"INDEX('LISTE DES TIREURS'!D$74:D$181,'FEUILLE D''INSCRIPTION'!S146)","v":0},null,null,null,"",1,1,null,1]
[null,null,null,null,null,{"$f":"INDEX('LISTE DES TIREURS'!B$74:B$194,'FEUILLE D''INSCRIPTION'!S147)","v":0},{"$f":"INDEX('LISTE DES TIREURS'!C$74:C$194,'FEUILLE D''INSCRIPTION'!S147)","v":0},{"$f":"INDEX('FEUILLE D''INSCRIPTION'!U$7:U$15,'FEUILLE D''INSCRIPTION'!T147)","v":0},{"$f":"INDEX('LISTE DES TIREURS'!G$8:G$82,'FEUILLE D''INSCRIPTION'!V147)","v":0},{"$f":"INDEX('LISTE DES TIREURS'!F$8:F$82,'FEUILLE D''INSCRIPTION'!V147)","v":0},"","","",{"$f":"INDEX('LISTE DES TIREURS'!D$74:D$181,'FEUILLE D''INSCRIPTION'!S147)","v":0},null,null,null,{"$f":"IF(S147=1,\"\",COUNTIFS($S$7:$S$181,S147))","v":""},1,1,null,1]
[null,null,null,null,null,{"$f":"INDEX('LISTE DES TIREURS'!B$74:B$194,'FEUILLE D''INSCRIPTION'!S148)","v":0},{"$f":"INDEX('LISTE DES TIREURS'!C$74:C$194,'FEUILLE D''INSCRIPTION'!S148)","v":0},{"$f":"INDEX('FEUILLE D''INSCRIPTION'!U$7:U$15,'FEUILLE D''INSCRIPTION'!T148)","v":0},{"$f":"INDEX('LISTE DES TIREURS'!G$8:G$82,'FEUILLE D''INSCRIPTION'!V148)","v":0},{"$f":"INDEX('LISTE DES TIREURS'!F$8:F$82,'FEUILLE D''INSCRIPTION'!V148)","v":0},"","","",{"$f":"INDEX('LISTE DES TIREURS'!D$74:D$181,'FEUILLE D''INSCRIPTION'!S148)","v":0},null,null,null,{"$f":"IF(S148=1,\"\",COUNTIFS($S$7:$S$181,S148))","v":""},1,1,null,1]
[null,null,null,null,null,{"$f":"INDEX('LISTE DES TIREURS'!B$74:B$194,'FEUILLE D''INSCRIPTION'!S149)","v":0},{"$f":"INDEX('LISTE DES TIREURS'!C$74:C$194,'FEUILLE D''INSCRIPTION'!S149)","v":0},{"$f":"INDEX('FEUILLE D''INSCRIPTION'!U$7:U$15,'FEUILLE D''INSCRIPTION'!T149)","v":0},{"$f":"INDEX('LISTE DES TIREURS'!G$8:G$82,'FEUILLE D''INSCRIPTION'!V149)","v":0},{"$f":"INDEX('LISTE DES TIREURS'!F$8:F$82,'FEUILLE D''INSCRIPTION'!V149)","v":0},"","","",{"$f":"INDEX('LISTE DES TIREURS'!D$74:D$181,'FEUILLE D''INSCRIPTION'!S149)","v":0},null,null,null,"",1,1,null,1]
[]
[]
[]
[]
[]
[]
[]
[]
[]
[]
[]
[]
[]
[]
[]
[]
[]
[]
[]
[]
[]
[]
[]
[]
[]
[]
[]
[]
[]
[]
[]
[]
[]
[]
[]
[]
[]
[]
[]
[]
[]
[]
[]
[]
[]
[]
[]
[]
[]
[]
[]
[]
[]
[]
[]
[]
[]
[]
[]
[]
[]
[]
[]
[]
[]
[]
[]
[]
[]
[]
[]
[]
[]
[]
[]
[]
[]
[]
[]
[]
[]
[]
[]
[]
[]
[]
[]
[]
[]
[]
[]
[]
[]
[]
[]
[]
[]
[]
[]
[]
[]
[]
[]
[]
[]
[]
[]
[]
[]
[]
[]
[]
[]
[]
[]
[]
[]
[]
[]
[]
[]
[]
[]
[]
[]
[]
[]
[]
[]
[]
[]
[]
[]
[]
[]
[]
[]
[]
[]
[]
[]
[]
[]
[]
[]
[]
[]
[]
[]
[]
[]
[]
[]
[]
[]
[]
[]
[]
[]
[]
[]
[]
[]
[]
[]
[]
[]
[]
[]
[]
[]
[]
[]
[]
[]
[]
[]
[]
[]
[]
[]
[]
[]
[]
[]
[]
[]
[]
[]
[]
[]
[]
[]
[]
[]
[]
[]
[]
[]
[]
[]
[]
[]
[]
[]
[]
[]
[]
[]
[]
[]
[]
[]
[]
[]
[]
[]
[]
[]
[]
[]
[]
[]
[]
[]
[]
[]
[]
[]
[]
[]
[]
[]
[]
[]
[]
[]
[]
[]
[]
[]
[]
[]
[]
[]
[]
[]
[]
[]
[]
[]
[]
[]
[]
[]
[]
[]
[]
[]
[]
[]
[]
[]
[]
[]
[]
[]
[]
[]
[]
[]
[]
[]
[]
[]
[]
[]
[]
[]
[]
[]
[]
[]
[]
[]
[]
[]
[]
[]
[]
[]
[]
[]
[]
[]
[]
[]
[]
[]
[]
[]
[]
[]
[]
[]
[]
[]
[]
[]
[]
[]
[]
[]
[]
[]
[]
[]
[]
[]
[]
[]
[]
[]
[]
[]
[]
[]
[]
[]
[]
[]
[]
[]
[]
[]
[]
[]
[]
[]
[]
[]
[]
[]
[]
[]
[]
[]
[]
[]
[]
[]
[]
[]
[]
[]
[]
[]
[]
[]
[]
[]
[]
[]
[]
[]
[]
[]
[]
[]
[]
[]
[]
[]
[]
[]
[]
[]
[]
[]
[]
[]
[]
[]
[]
[]
[]
[]
[]
[]
[]
[]
[]
[]
[]
[]
[]
[]
[]
[]
[]
[]
[]
[]
[]
[]
[]
[]
[]
[]
[]
[]
[null,null,null,null,null,null,null,null,null,null,null,null,null,null,null,null,null,null,null,1]
[]
[]
[]
[]
[]
[]
[]
[]
[]
[]
[]
[]
[]
[]
[]
[]
[]
[]
[]
[]
[]
[]
[]
[]
[]
[]
[]
[]
[]
[]
[]
[]
[]
[]
[]
[]
[]
[]
[]
[]
[]
[]
[]
[]
[]
[]
[]
[]
[]
[]
[]
[]
[]
[]
[]
[]
[]
[]
[]
[]
[]
[]
[]
[]
[]
[]
[]
[]
[]
[]
[]
[]
[]
[]
[]
[]
[]
[]
[]
[]
[]
[]
[]
[]
[]
[]
[]
[]
[]
[]
[]
[]
[]
[]
[]
[]
[]
[]
[]
[null,null,null,null,null,null,null,null,null,null,null,null,null,null,null,null,null,null,null,1]
[]
[]
[]
[]
[]
[]
[]
[]
[]
[]
[]
[]
[]
[]
[]
[]
[]
[]
[]
[]
[]
[]
[]
[]
[]
[]
[]
[]
[]
[]
[]
[]
[]
[]
[]
[]
[]
[]
[]
[]
[]
[]
[]
[]
[]
[]
[]
[]
[]
[]
[]
[]
[]
[]
[]
[]
[]
[]
[]
[]
[]
[]
[]
[]
[]
[]
[]
[]
[]
[]
[]
[]
[]
[]
[]
[]
[]
[]
[]
[]
[]
[]
[]
[]
[]
[]
[]
[]
[]
[]
[]
[]
[]
[]
[]
[]
[]
[]
[]
[]
[]
[]
[]
[]
[]
[]
[]
[]
[]
[]
[]
[]
[]
[]
[]
[]
[]
[]
[]
[]
[]
[]
[]
[]
[]
[]
[]
[]
[]
[]
[]
[]
[]
[]
[]
[]
[]
[]
[]
[]
[]
[]
[]
[]
[]
[]
[]
[]
[]
[]
[]
[]
[]
[]
[]
[]
[]
[]
[]
[]
[]
[]
[]
[]
[]
[]
[]
[]
[]
[]
[]
[]
[]
[]
[]
[]
[]
[]
[]
[]
[]
[]
[]
[]
[]
[]
[]
[]
[]
[]
[]
[]
[]
[]
[]
[]
[]
[]
[]
[]
[]
[]
[]
[]
[]
[]
[]
[]
[]
[]
[]
[]
[]
[]
[]
[]
[]
[]
[]
[]
[]
[]
[]
[]
[]
[]
[]
[]
[]
[]
[]
[]
[]
[]
[]
[]
[]
[]
[]
[]
[]
[]
[]
[]
[]
[]
[]
[]
[]
[]
[]
[]
[]
[]
[]
[]
[]
[]
[]
[]
[]
[]
[]
[]
[]
[]
[]
[]
[]
[]
[]
[]
[]
[]
[]
[]
[]
[]
[]
[]
[]
[]
[]
[]
[]
[]
[]
[]
[]
[]
[]
[]
[]
[]
[]
[]
[]
[]
[]
[]
[]
[]
[]
[]
[]
[]
[]
[]
[]
[]
[]
[]
[]
[]
[]
[]
[]
[]
[]
[]
[]
[]
[]
[]
[]
[]
[]
[]
[]
[]
[]
[]
[]
[]
[]
[]
[]
[]
[]
[]
[]
[]
[]
[]
[]
[]
[]
[]
[]
[]
[]
[]
[]
[]
[]
[]
[]
[]
[]
[]
[]
[]
[]
[]
[]
[]
[]
[]
[]
[]
[]
[]
[]
[null,null,null,null,null,null,null,null,null,null,null,null,null,null,null,null,null,null,null,null,null,2]

{"sheet":"MODE D'EMPLOI","index":2,"n_rows":0,"n_cols":0,"rows_kept":0,"cut":false,"hidden":false,"merged":[]}